{"text_format":"1","workbook":"xlsx","n_sheets":21,"sheets":["Cover Page","Contents","Facility Info","Operational Data","Operational Summary","Perf. Form 1","Energy Form 1","Permit Compliance","Improvements","Public Liasion","Residue Quality ","Water","Air (periodic)","Air (CEMS)","HCl","SO2","NOx","TOC","Particulates","CO 95% 10 min","NH3"],"not_rendered":{"charts":7,"images":2,"macros":1,"external_links":0,"defined_names":20,"comments":0,"pivot_tables":0},"unopened":[],"bounds":{"document_bytes":16777216,"sheet_cells":100000,"rows_first":2000,"rows_last":500,"rows_between":2000,"halvings":0,"cell_chars":16384,"cell_head_chars":4096},"cells_cut":0,"cells_raw":0,"read":"whole","date_system":"1900"}

{"sheet":"Cover Page","index":0,"n_rows":53,"n_cols":14,"rows_kept":53,"cut":false,"hidden":false,"merged":[[48,2,48,3],[48,6,48,8],[52,2,52,3],[36,1,36,8],[40,2,40,8],[42,2,42,4],[44,2,44,4],[46,2,46,3],[46,6,46,8],[13,13,18,15],[34,1,34,8],[0,3,5,6],[7,1,23,8],[28,1,28,8],[30,1,30,8],[32,1,32,8]]}
[null,null,null,"Add company logo"]
[null,null,null,null,null,null,null,null,null,null,null,null,null,"Version 2.1 11/11/19"]
[]
[]
[]
[]
[]
[null,"Add photo"]
[]
[]
[]
[]
[null,null,null,null,null,null,null,null,null,null,null,null,null,"Notes:"]
[null,null,null,null,null,null,null,null,null,null,null,null,null,"This template may require adjustments by individual operators to meet specific reporting requirements as defined in the site Permit(s)"]
[]
[]
[]
[]
[]
[]
[]
[]
[]
[]
[]
[]
[]
[]
[null,"Annual Performance Report 2021"]
[]
[null,"Permit EPR/DP3104SC/T001"]
[]
[null,"SUEZ R&R UK LTD \nSUEZ R&R  Tees Valley – Energy from Waste Facility\n Tees Valley – Energy from Waste Facility"]
[]
[null,"other name of facility (if applicable)"]
[]
[null,"SUEZ "]
[]
[null,"Year:",2021]
[]
[null,"Address:","Haverton Hill Road, Billingham TS23 1PY"]
[]
[null,"Tel: ","01642 373919"]
[]
[null,"Email: ","paula.bakes@suez.com"]
[]
[null,"Prepared by:","Paula Bakes",null,null,"Position:","EIR Manager"]
[]
[null,"Approved by:","Darren Thomas",null,null,"Position:","Plant Manager"]
[]
[null,"Version:",1]
[]
[null,"Issue Date:"]

{"sheet":"Contents","index":1,"n_rows":44,"n_cols":11,"rows_kept":44,"cut":false,"hidden":false,"merged":[[43,0,46,9],[36,1,36,6],[37,1,37,6],[38,1,38,6],[39,1,39,6],[40,1,40,6],[41,1,41,6],[35,1,35,6],[21,1,21,6],[22,1,22,6],[23,1,23,6],[26,1,26,6],[27,1,27,6],[28,1,28,6],[29,1,29,6],[30,1,30,6],[31,1,31,6],[34,1,34,6],[20,1,20,6],[9,1,9,6],[10,1,10,6],[11,1,11,6],[12,1,12,6],[13,1,13,6],[14,1,14,6],[15,1,15,6],[16,1,16,6],[17,1,17,6],[18,1,18,6],[19,1,19,6],[4,10,7,14],[8,1,8,6],[3,1,3,6],[4,1,4,6],[5,1,5,6],[6,1,6,6],[7,1,7,6]]}
[{"$f":"+'Cover Page'!$B$29","v":"Annual Performance Report 2021"},null,null,null,{"$f":"+'Cover Page'!$B$33","v":"SUEZ R&R UK LTD \nSUEZ R&R  Tees Valley – Energy from Waste Facility\n Tees Valley – Energy from Waste Facility"}]
[]
["Contents",null,null,null,null,null,null,null,null,null,"Notes:"]
["Section","Subject",null,null,null,null,null,"Page ",null,null,"Section references and Page nos. to be inserted"]
[null,"Facility Information",null,null,null,null,null,null,null,null,"Sections and Subjects may require adjustment by individual operators to meet specific reporting requirements as defined in the sites Permit(s)"]
[null,"Operational Summary"]
[null,"Operational Data"]
[null,"Performance Form 1"]
[null,"Energy Form 1"]
[null,"Permit Compliance"]
[null,"Improvements"]
[null,"Public Liasion"]
[null,"Residue Quality - Optional"]
[null,"Emissions to Water"]
[null,"Emissions to Air (periodically monitored)"]
[null,"Emissions to Air (continuously monitored)"]
[null,"Hydrogen Chloride emissions"]
[null,"Sulphur Dioxdie emsissions"]
[null,"Oxides of Notrigen emissions"]
[null,"Total Organic Carbon emissions"]
[null,"Particulate Matter emissions"]
[null,"Carbon Monoxide emissions"]
[null,"Ammonia emissions"]
[]
[]
["Version Control"]
["Section","Information",null,null,null,null,null,"Date"]
[]
[null,"Annual Performance Report 2021"]
[]
[]
[]
[]
["Distribution"]
["Copy","Name, Role",null,null,null,null,null,"No."]
[]
[]
[]
[]
[]
[]
[]
[]
["This report is required under the Industrial Emissions Directive’s Article 55(2) requirements on reporting and public information on waste incineration plants and co-incineration plants, which require the operator to produce an annual report on the functioning and monitoring of the plant and make it available to the public. "]

{"sheet":"Facility Info","index":2,"n_rows":22,"n_cols":11,"rows_kept":22,"cut":false,"hidden":false,"merged":[[4,0,17,8],[21,0,53,8],[4,10,13,13],[21,10,30,13]]}
[{"$f":"+'Cover Page'!$B$29","v":"Annual Performance Report 2021"},null,null,null,{"$f":"+'Cover Page'!$B$33","v":"SUEZ R&R UK LTD \nSUEZ R&R  Tees Valley – Energy from Waste Facility\n Tees Valley – Energy from Waste Facility"}]
[]
["Plant Description and Design",null,null,null,null,null,null,null,null,null,"Notes:"]
[]
["The Energy from Waste facility operates 24/7 and can receive up to 2,800 tonnes of municipal waste from local councils per week. The plant has five furnace lines with a combined processing capacity of 756,000 tonnes per annum. The heat produced by waste incineration is used to raise superheated steam which is harnessed to turn 3 x  single-cylinder turbine linked to an electricity generator producing  approx 55 MWh of electricity. Power produced, is sold to the National Grid \n\nThe plant has 5 Lines. Incoming waste is delivered to site by refuse collection trucks, it is checked in, weighted, then delivered into the reception hall.\nRECEPTION HALL\n2 large reception hall allows refuse collection trucks to manoeuvre and tip waste safely. Air needed for combustion is drawn into the furnace from here so that odour and dust do not escape from the building.\nBUNKER\nWaste vehicles reverse to a wheel stop and tip their loads into a large concrete bunker. Mixing of waste occurs as the crane driver sorts the waste looking for unsuitable wastes to be removed, and to improve the homogeneity of the incinerator feedstock. ",null,null,null,null,null,null,null,null,null,"Include summary of plant design, design capacity, no. of combustion lines, electrical and heat capacity and any other general information that descibes the facility, its location and purpose "]
[]
[]
[]
[]
[]
[]
[]
[]
[]
[]
[]
[]
[]
[]
["Summary of Operational Processes and Procedures"]
[]
["CONTROL ROOM\nThere is 2 plant control rooms which centralises the operation of all equipment, including the grab crane used to mix and load waste into hoppers that feeds the furnace. All on-site functions are monitored automatically and manually. Its systems verify in real time that equipment is functioning properly, continuously monitor the combustion gas, and maximise the efficiency of the entire EfW process.\n\nGRATE AND BOILER\nWaste is lifted into the charging hoppers by the crane, from here waste falls into the furnace-charging chute and then onto the grate system for incineration. The thermal energy released from the burning is used to convert water to super-heated steam. At high pressure, this steam drives a turbine to generate electricity.\n\nELECTRICITY GENERATION\nElectricity is generated at 11kv, with an electric capacity of 55 MWh.\n\nBOTTOM ASH\nAsh left on the grate after incineration is carried by conveyor to a storage bunker. In the bottom ash recycling facility a magnet above a conveyor extracts ferrous material for recycling. The remaining bottom ash processed for recycling.\n\nAIR-COOLED AND WATER-COOLED CONDENSERS\nAfter exiting the turbine, the air stream is cooled and condensed back into water through air condensers for line 3,4&5 and river water is used as the cooling media for line 1, and 2. This recovered water is treated and reused in the boilers to produce more steam.\n\nEMISSION CONTROL\nThe gases from the furnace are subject to a rigorous cleaning process involving selective non-catalytic reduction (SNCR), spray absorbers, and active carbon injection. This removes oxides of nitrogen, acidic gases, dioxins, and heavy metals from the gas stream.\n\nAIR POLLUTION CONTROL RESIDUE (APCR)\nThe cleaned gas is passed through fine-fabric bag filters to remove solid particles before it is emitted through the stack. The resultant APCR residue, or fly-ash, contains particles from the incineration process, lime used in the spray absorbers, salts and carbon dust. It is stored in a sealed silo until it removed from site for disposal.\n\nEMISSIONS MONITORING\nAs they pass through the stack, the residual flue gases from the process are continuously monitored before release. Each incinerator line has and independent stack and emissions monitoring system. This data is relayed automatically to the control room. \n\nSURFACE WATER\nSurface water run-off exits the installation to a pipeline that discharges to the River Tees. Surface water run offs from fuel delivery areas are protected by oil/water interceptors.  Periodic boiler blow down during maintenance of the incinerator are also discharged to this pipeline.  \n",null,null,null,null,null,null,null,null,null,"Include summary of key processes and procedures such as (but not limited to); waste reception, control rooms, grate, bed and bolier, energy & heat  generation, cooling systems, residue management, emission controls, health and safety systems, maintenance"]

{"sheet":"Operational Data","index":3,"n_rows":64,"n_cols":8,"rows_kept":64,"cut":false,"hidden":false,"merged":[[32,1,37,1],[29,2,29,5],[29,6,29,7],[3,1,3,2],[7,1,19,1],[22,1,25,1],[27,1,28,1]]}
[{"$f":"+'Cover Page'!$B$29","v":"Annual Performance Report 2021"},null,null,null,{"$f":"+'Cover Page'!$B$33","v":"SUEZ R&R UK LTD \nSUEZ R&R  Tees Valley – Energy from Waste Facility\n Tees Valley – Energy from Waste Facility"}]
[]
["Operational Data"]
["Plant Size",756000,null,"tonnes pa","1&2 - 81, 3-45, 4&5-92","MWth",29,"MWe"]
["No. of combustion lines",5,null,"No. of Turbines:",null,3]
[]
["Waste types received","Unit","Q1","Q2","Q3","Q4","Year Total","%"]
["Household / Local Authority","tonnes",169191,159568,167754,163281,{"$f":"SUM(C8:F8)","v":659794},{"$f":"IF(G8>0,G8/$G$18,\"-\")","v":0.9754278068936969}]
["Commercial & Industrial ",null,2241,1437,3635,5521,{"$f":"SUM(C9:F9)","v":12834},1.8973559131598206E-2]
["Hazardous ",null," -   "," -   "," -   "," -   ",0,"-"]
["Clinical",null,734,886,1100,1067,3787,5.598633974704878E-3]
["Waste wood (biomass) ",null," -   "," -   "," -   "," -   ",0,"-"]
["Refuse derived fuel ",null," -   "," -   "," -   "," -   ",0,"-"]
["Solid recovered fuel ",null," -   "," -   "," -   "," -   ",0,"-"]
["Other [Please specify]",null," -   "," -   "," -   "," -   ",0,"-"]
["Other [Please specify]",null," -   "," -   "," -   "," -   ",0]
["Other [Please specify]",null," -   "," -   "," -   "," -   ",0]
["Total waste received",null,{"$f":"SUM(C8:C17)","v":172166},{"$f":"SUM(D8:D17)","v":161891},172489,169869,676415,1]
["Rejected Waste ",null,null,null,null,null,{"$f":"SUM(C19:F19)","v":0},{"$f":"IF(G19>0,G19/$G$18,\"-\")","v":"-"}]
["Waste transferred out",null,1136,null,null,null,{"$f":"SUM(C20:F20)","v":1136},{"$f":"IF(G20>0,G20/$G$18,\"-\")","v":1.6794423541760606E-3}]
["Total waste combusted",null,{"$f":"C18-SUM(C19:C20)","v":171030},{"$f":"D18-SUM(D19:D20)","v":161891},172489,169869,{"$f":"SUM(C21:F21)","v":675279},{"$f":"IF(G21>0,G21/$G$18,\"-\")","v":0.99832055764582395}]
["Energy Useage / Export","Unit","Q1","Q2","Q3","Q4","Year Total","KWh/te"]
["Power Generated","MWh",110847,105030,108477,101515,{"$f":"SUM(C23:F23)","v":425869},{"$f":"IF(G23>0,G23*1000/$G$21,\"-\")","v":630.65636573919812}]
["Power Exported",null,97896,92855,94998,94424,{"$f":"SUM(C24:F24)","v":380173},{"$f":"IF(G24>0,G24*1000/$G$21,\"-\")","v":562.98655814855783}]
["Power Used on site",null,12950,12175,13480,13090,{"$f":"SUM(C25:F25)","v":51695},{"$f":"IF(G25>0,G25*1000/$G$21,\"-\")","v":76.553543054056178}]
["Power Imported",null,268,319,303,330,1220,{"$f":"IF(G26>0,G26*1000/$G$21,\"-\")","v":1.8066606543369481}]
["Parasitic Load","%",0.11899999999999999,0.11899999999999999,0.127,7.2999999999999995E-2,{"$f":"IF(G23>0,1-G24/(G23+G26),\"-\")","v":0.10985064003053224}]
["Thermal Energy Produced","GWh",null,null,null,null,{"$f":"SUM(C28:F28)","v":0},{"$f":"IF(G28>0,G28*1000/$G$21,\"-\")","v":"-"}]
["Thermal Energy Exported",null,null,null,null,null,0,{"$f":"IF(G29>0,G29*1000/$G$21,\"-\")","v":"-"}]
["R1 value",null,null,null,null,null,"Design / Operational / n/a"]
[]
["Waste Disposal & Recovery","Unit","Q1","Q2","Q3","Q4","Year Total","% inputs"]
["APC Residues - produced","tonnes",6153,5550,5610,4830,{"$f":"SUM(C33:F33)","v":22143},{"$f":"IF(G33>0,G33/$G$21,\"-\")","v":3.279089087621561E-2}]
["IBA - produced",null,43024,43540,42163,39472,168199,{"$f":"IF(G34>0,G34/$G$21,\"-\")","v":0.24908075032690191}]
["Metals recycling",null,7159,5747,5792,4633,{"$f":"SUM(C35:F35)","v":23331},3.455016371011093E-2]
["Other",null,0,0,0,0,{"$f":"SUM(C36:F36)","v":0},"-"]
["Other",null,0,0,0,0,0,"-"]
["Other",null,0,0,0,0,0,"-"]
[null,null,2021]
["Raw Material Usage","Unit","Q1","Q2","Q3","Q4","Year Total","kg or Ltr /te"]
["Mains Water","m3",31296,16339,19972,25257,{"$f":"SUM(C41:F41)","v":92864},{"$f":"IF(G41>0,G41/$G$21,\"-\")","v":0.13751945492159537}]
["Other Water","m3"," -   "," -   "," -   "," -   ",{"$f":"SUM(C42:F42)","v":0},{"$f":"IF(G42>0,G42/$G$21,\"-\")","v":"-"}]
["Ammonia / Urea","kgs",284,300,376,328,1288,1.9073597727754009E-3]
["Activated Carbon","kgs",69,68,68,63,268,3.968729961986083E-4]
["Lime / hydrated lime","kgs",1716,1653,1601,1518,6488,9.6078805945394429E-3]
["Fuel oil","ltrs",263151,218636,267868,267553,1017208,1.506352189243261]
["Gas","cf",null,null,null,null,{"$f":"SUM(C47:F47)","v":0},"-"]
["Other",null,0,0,0,0,0,"-"]
[]
["Summary of Hours","Line/Unit","Q1","Q2","Q3","Q4","Year Total"]
["Hours of waste combustion, total",1,1908,1953,2175,1523,{"$f":"SUM(C51:F51)","v":7559}," x %"]
["Hours of waste combustion, total",2,1924,2155,2144,1601,7824,"x %"]
["Hours of waste combustion, total",3,2098,1431,2196,2185,7910,"x %"]
["Hours of waste combustion, total",4,2127,1887,1940,2207,8161,"x %"]
["Hours of waste combustion, total",5,2096,2184,1766,2174,{"$f":"SUM(C55:F55)","v":8220},"x %"]
["Overall Availability, mean avg. of all lines, hrs",null,null,null,null,null,{"$f":"AVERAGE(G51:G55)","v":7934.8},"x %"]
["Hours of turbine operations, total","1&2",1945,2183,2197,1823,8148,"x %"]
["Hours of turbine operations, total",3,2038,1425,2172,2199,7834,"x %"]
["Hours of turbine operations, total","4&5",2156,2184,1972,2206,8518,"x %"]
["Hours of heat / steam export",null,0,0,0,0,0,{"$f":"IF(B60>0,G59/8760,\"n/a\")","v":"n/a"}]
["Net Calorific Value of waste (5line average)","MJ/kg",8.9499999999999993,9.23,9.23,9.16,36.57,"-"]
["Abnormal Events","qty.",null,null,null,1,1,{"$f":"IF(G62>0,\"yes\",\"no\")","v":"yes"}]
["Abnormal operation","hours",null,null,null,0.5,0.5,{"$f":"+(G63)/8760","v":5.7077625570776254E-5}]
["Permit Breaches","qty.",1,null,null,null,1,{"$f":"IF(G64>0,\"yes\",\"no\")","v":"yes"}]

{"sheet":"Operational Summary","index":4,"n_rows":31,"n_cols":11,"rows_kept":31,"cut":false,"hidden":false,"merged":[[4,0,26,8],[30,0,51,8],[4,10,13,13],[30,10,39,13]]}
[{"$f":"+'Cover Page'!$B$29","v":"Annual Performance Report 2021"},null,null,null,{"$f":"+'Cover Page'!$B$33","v":"SUEZ R&R UK LTD \nSUEZ R&R  Tees Valley – Energy from Waste Facility\n Tees Valley – Energy from Waste Facility"}]
[]
["Summary of Plant Operations and Maintenance during the reporting year",null,null,null,null,null,null,null,null,null,"Notes:"]
[]
["Lines 4 and 5 operated in a stable and consistent manner for the majority of the year with two predominant issues.  In July approx. 57 hours of production were lost on both lines as a consequence of a failure to an air cooled condenser fan and in September approx. 144 hours of plant availability were lost as a consequence of a component failure within the turbine control panel.  Minor losses were also encountered throughout the year predominantly as a consequence of  blockages in the bottom ash extractor on both lines. Planned maintenance for Line 4 was carried out from 10th to 28th February and line 5 from 16th February to the 2nd March (no major upgrades or replacements were installed).                                   Lines 1&2 operated very well during the year, with a failure of the plants main control system affecting both lines in July and failure of the emissions control system in October being the predominant unplanned events. Minor losses were also encountered during the year as a consequence of failure on line 2 waste feed chute door, a steam leak on a boiler drain line and issues with the bottom ash extractor on both lines .  Due to Covid 19 restrictions the minor outage planned for April was cancelled with the major outage completed between the 23rd July to the 29th August.  Major upgrades included installation of steam line separators, furnace refractory replacement and grate repairs.                                                                                                                                   Lines 3 operated well all year, with major unplanned events occurring in February as a consequence of a boiler tube leak and August due to an electrical panel failure.  Minor unplanned events were also encountered as a consequence of bottom ash conveyor blockages.\nPlanned maintenance for Line 3 was carried out during a major outage which took place from 25th May to 23rd June. Major upgrades again included refractory furnace replacement and grate repairs.                       During 2020, two emissions breaches occurred across the site with a half hourly VoC reported in April on line 4 and a half hourly SO2 on Line 1 in December",null,null,null,null,null,null,null,null,null,"Include summary of key operational and/or mainteanance activity undertaken in the year, such as any major component upgrades and/or replacements "]
[]
[]
[]
[]
[]
[]
[]
[]
[]
[]
[]
[]
[]
[]
[]
[]
[]
[]
[]
[]
[]
[]
[]
["Summary of Residue Handling for the reporting year","Annual Performance Report 2021"]
[]
["No significant issues have been reported in 2021. Work Has progressed to improve and optimise bottom ash conveyor reliability on lines 1&2 and in addition further project work has been completed to prevent bottom ash blockages. The residues from Boiler Ash and Flue Gas Treatment were diverted to Augean for further treatment prior to landfill for Lines 1,2,4&5. Modification works have been completed in 2021 on line 3 to divert boiler ash into the IBA.  There has been no issues reported with IBA all material taken to Blue Phoenix Teesside where it is processed and then transported off site and sold. ",null,null,null,null,null,null,null,null,null,"Include in here a summary of residue handling regimes and destinations "]

{"sheet":"Perf. Form 1","index":5,"n_rows":54,"n_cols":10,"rows_kept":54,"cut":false,"hidden":false,"merged":[[47,0,47,1],[49,0,49,9],[50,0,51,9],[38,0,38,9],[39,0,40,9],[43,0,43,1],[43,2,43,9],[45,0,45,1],[46,0,46,1],[36,0,36,3],[36,4,36,5],[36,7,36,8],[37,0,37,3],[37,4,37,5],[37,7,37,8],[34,0,34,3],[34,4,34,5],[34,7,34,8],[35,0,35,3],[35,4,35,5],[35,7,35,8],[31,0,31,3],[31,7,31,8],[32,0,32,3],[32,4,32,5],[32,7,32,8],[33,0,33,3],[33,4,33,5],[33,7,33,8],[23,0,23,3],[23,4,23,5],[23,6,23,7],[23,8,23,9],[25,0,25,9],[26,0,28,9],[21,0,21,1],[21,2,21,3],[21,4,21,5],[21,6,21,7],[21,8,21,9],[22,0,22,3],[22,4,22,5],[22,6,22,7],[22,8,22,9],[19,0,19,1],[19,2,19,3],[19,4,19,5],[19,6,19,7],[19,8,19,9],[20,0,20,1],[20,2,20,3],[20,4,20,5],[20,6,20,7],[20,8,20,9],[17,0,17,1],[17,2,17,3],[17,4,17,5],[17,6,17,7],[17,8,17,9],[18,0,18,1],[18,2,18,3],[18,4,18,5],[18,6,18,7],[18,8,18,9],[15,0,15,1],[15,2,15,3],[15,4,15,5],[15,6,15,7],[15,8,15,9],[16,0,16,9],[13,0,13,1],[13,2,13,3],[13,4,13,5],[13,6,13,7],[13,8,13,9],[14,0,14,3],[14,4,14,5],[14,6,14,7],[14,8,14,9],[11,0,11,1],[11,2,11,3],[11,4,11,5],[11,6,11,7],[11,8,11,9],[12,0,12,1],[12,2,12,3],[12,4,12,5],[12,6,12,7],[12,8,12,9],[9,0,9,9],[10,0,10,1],[10,2,10,3],[10,4,10,5],[10,6,10,7],[10,8,10,9],[2,0,2,4],[2,6,2,8],[3,1,3,4],[5,3,5,4],[5,6,5,7],[8,0,8,1],[8,2,8,3],[8,4,8,5],[8,6,8,7],[8,8,8,9]]}
[{"$f":"+'Cover Page'!C39","v":2021}," Annual Reporting Performance Form 1"]
[]
[{"$f":"+'Cover Page'!B31","v":"Permit EPR/DP3104SC/T001"},null,null,null,null,"Operator: ",{"$f":"+'Cover Page'!B37:I37","v":0}]
["Facility:",{"$f":"+'Cover Page'!B33:I33","v":"SUEZ R&R UK LTD \nSUEZ R&R  Tees Valley – Energy from Waste Facility\n Tees Valley – Energy from Waste Facility"},null,null,null,"Form:","Performance 1"]
[]
["Reporting  Period from: ",null,null,"January",null,"to:","December"]
[]
[{"$f":"+A1","v":2021},"Annual Reporting of Waste Disposal and Recovery"]
["Waste Description",null,"Disposal Route(s)",null,"Disposal Tonnes",null,"Recovery Tonnes",null,"% / tonne of waste incinerated"]
["1) Hazardous Wastes"]
["APC Residues",null,"Augean",null,22143,null,null,null,{"$f":"IF((E11+G11)>0,(E11+G11)/'Operational Data'!$G$21, \"-\")","v":3.279089087621561E-2}]
["IBA",null,null,null,null,null,null,null,{"$f":"IF((E12+G12)>0,(E12+G12)/'Operational Data'!$G$18, \"-\")","v":"-"}]
[null,null,null,null,null,null,null,null,{"$f":"IF((E13+G13)>0,(E13+G13)/'Operational Data'!$G$18, \"-\")","v":"-"}]
[null,null,null,null,null,null,null,null,{"$f":"IF((E14+G14)>0,(E14+G14)/'Operational Data'!$G$18, \"-\")","v":"-"}]
["Total Hazardous Waste",null,null,null,{"$f":"SUM(E11:F14)","v":22143},null,{"$f":"SUM(G11:H14)","v":0},null,{"$f":"IF((E15+G15)>0,(E15+G15)/'Operational Data'!$G$21, \"-\")","v":3.279089087621561E-2}]
[]
["2) Non-Hazardous Wastes"]
["IBA",null,"Recycled",null,168198,null,null,null,{"$f":"IF((E18+G18)>0,(E18+G18)/'Operational Data'!$G$21, \"-\")","v":0.24907926945751313}]
["Ferrous Metal",null,null,null,null,null,null,null,{"$f":"IF((E19+G19)>0,(E19+G19)/'Operational Data'!$G$18, \"-\")","v":"-"}]
["Process Water",null,null,null,null,null,null,null,{"$f":"IF((E20+G20)>0,(E20+G20)/'Operational Data'!$G$21, \"-\")","v":"-"}]
[null,null,null,null,null,null,null,null,{"$f":"IF((E21+G21)>0,(E21+G21)/'Operational Data'!$G$18, \"-\")","v":"-"}]
[null,null,null,null,null,null,null,null,{"$f":"IF((E22+G22)>0,(E22+G22)/'Operational Data'!$G$18, \"-\")","v":"-"}]
["Total Non-Hazardous Waste",null,null,null,{"$f":"SUM(E18:F22)","v":168198},null,{"$f":"SUM(G18:H22)","v":0},null,{"$f":"IF((E23+G23)>0,(E23+G23)/'Operational Data'!$G$21, \"-\")","v":0.24907926945751313}]
["TOTAL WASTE",null,null,null,{"$f":"+E23+E15","v":190341},null,{"$f":"+G23+G15","v":0},null,{"$f":"IF((E24+G24)>0,(E24+G24)/'Operational Data'!$G$21, \"-\")","v":0.28187016033372875}]
[]
["Operator’s comments :"]
[]
[]
[]
[]
[{"$f":"+A1","v":2021},"Annual Reporting of Water and Other Raw Material Usage"]
["Raw Material",null,null,null,"Usage",null,"Unit","Specific Useage",null,"Unit"]
["Mains Water",null,null,null,{"$f":"+'Operational Data'!G41","v":92864},null,"m3",{"$f":"IF(E33>0,E33/'Operational Data'!$G$21,\"-\")","v":0.13751945492159537},null,"m3/te"]
["Total Water",null,null,null,{"$f":"+'Operational Data'!G42","v":0},null,"m3",{"$f":"IF(E34>0,E34/'Operational Data'!$G$21,\"-\")","v":"-"},null,"m3/te"]
["Urea / Ammonia",null,null,null,{"$f":"+'Operational Data'!G43","v":1288},null,"kg",{"$f":"IF(E35>0,E35/'Operational Data'!$G$21,\"-\")","v":1.9073597727754009E-3},null,"kg/te"]
["Activated Carbon",null,null,null,{"$f":"+'Operational Data'!G44","v":268},null,"kg",{"$f":"IF(E36>0,E36/'Operational Data'!$G$21,\"-\")","v":3.968729961986083E-4},null,"kg/te"]
["Lime / hydrated lime / Sodium Bicarb.",null,null,null,{"$f":"+'Operational Data'!G45","v":6488},null,"kg",{"$f":"IF(E37>0,E37/'Operational Data'!$G$21,\"-\")","v":9.6078805945394429E-3},null,"kg/te"]
[]
["Operator’s comments :"]
[]
[]
[]
[{"$f":"+A31","v":2021},"Annual Reporting of other performance indicators "]
["Parameter",null,"Results by Line"]
[null,null,"A1","A2","A3","A4","A5",null,"Turbine 1","Turbine 2"]
["Operating hours for the year, hours",null,{"$f":"'Operational Data'!G51","v":7559},{"$f":"'Operational Data'!G52","v":7824},{"$f":"'Operational Data'!G53","v":7910},{"$f":"'Operational Data'!G54","v":8161},{"$f":"'Operational Data'!G55","v":8220}]
["Number of periods of abnormal operation, qty."]
["Cumulative hours of abnormal operation for this year, hours"]
[]
["Operator’s comments :"]
[]
[]
[]
["Signed: ",null,null,null,null,null,"Date:"]

{"sheet":"Energy Form 1","index":6,"n_rows":39,"n_cols":7,"rows_kept":39,"cut":false,"hidden":false,"merged":[[15,0,15,2],[15,3,15,4],[15,6,15,8],[17,0,17,8],[18,0,24,8],[13,0,13,2],[13,3,13,4],[13,6,13,8],[14,0,14,2],[14,3,14,4],[14,6,14,8],[11,0,11,2],[11,3,11,4],[11,6,11,8],[12,0,12,2],[12,3,12,4],[12,6,12,8],[9,0,9,2],[9,3,9,4],[9,6,9,8],[10,0,10,2],[10,3,10,4],[10,6,10,8],[2,6,2,8],[4,1,4,4],[6,3,6,4],[6,6,6,7],[8,0,8,2],[8,3,8,4],[8,6,8,8]]}
[{"$f":"+'Cover Page'!C39","v":2021}," Annual Reporting of Energy Usage/Export"]
[]
[{"$f":"+'Cover Page'!B31","v":"Permit EPR/DP3104SC/T001"},null,null,null,null,"Operator: ",{"$f":"+'Cover Page'!B37:I37","v":0}]
[]
["Facility:",{"$f":"+'Cover Page'!B33:I33","v":"SUEZ R&R UK LTD \nSUEZ R&R  Tees Valley – Energy from Waste Facility\n Tees Valley – Energy from Waste Facility"},null,null,null,"Form:","Energy 1"]
[]
["Reporting  Period from: ",null,null,{"$f":"+'Perf. Form 1'!D6:E6","v":"January"},null,"to:",{"$f":"+'Perf. Form 1'!G6:H6","v":"December"}]
[]
["Energy Source",null,null,"Energy Usage",null,"Unit","Specific Useage (KWh/tonne incinerated"]
["Electricity Produced",null,null,{"$f":"+'Operational Data'!G23","v":425869},null,"MWh",{"$f":"+'Operational Data'!H23","v":630.65636573919812}]
["Electricity Imported   ",null,null,{"$f":"+'Operational Data'!G26","v":1220},null,"MWh",{"$f":"+'Operational Data'!H26","v":1.8066606543369481}]
["Electricity Exported",null,null,{"$f":"+'Operational Data'!G24","v":380173},null,"MWh",{"$f":"+'Operational Data'!H24","v":562.98655814855783}]
["Gas Oil",null,null,null,null,"tonnes"]
["Steam/hot water exported",null,null,null,null,"GWh",{"$f":"+'Operational Data'!H29","v":"-"}]
[]
[]
[]
["Operator’s comments :"]
[]
[]
[]
[]
[]
[]
[]
[]
[]
[]
["Signed: ","Annual Performance Report 2021",null,null,null,null,"Date:"]
[]
[]
[]
[]
[]
[]
[]
[]
[]
[null,null,2021]

{"sheet":"Permit Compliance","index":7,"n_rows":39,"n_cols":8,"rows_kept":39,"cut":false,"hidden":false,"merged":[[26,0,26,10],[18,0,18,10],[31,1,31,3],[31,4,31,6],[31,7,31,9],[27,1,27,3],[27,4,27,6],[27,7,27,9],[28,1,28,3],[28,4,28,6],[28,7,28,9],[23,1,23,3],[23,4,23,6],[23,7,23,9],[24,1,24,3],[24,4,24,6],[32,1,32,3],[32,4,32,6],[32,7,32,9],[29,1,29,3],[29,4,29,6],[29,7,29,9],[30,1,30,3],[30,4,30,6],[30,7,30,9],[24,7,24,9],[21,1,21,3],[21,4,21,6],[21,7,21,9],[22,1,22,3],[22,4,22,6],[22,7,22,9],[19,1,19,3],[19,4,19,6],[19,7,19,9],[20,1,20,3],[20,4,20,6],[20,7,20,9],[14,0,14,1],[14,2,14,4],[14,5,14,8],[15,0,15,1],[16,2,16,4],[16,5,16,8],[15,2,15,4],[15,5,15,8],[16,0,16,1],[12,2,12,4],[12,5,12,8],[13,0,13,1],[13,2,13,4],[13,5,13,8],[33,4,33,8],[9,0,9,1],[9,2,9,4],[9,5,9,8],[7,0,7,1],[7,2,7,8],[8,0,8,1],[8,2,8,4],[8,5,8,8],[10,0,10,1],[10,2,10,4],[10,5,10,8],[11,0,11,1],[11,2,11,4],[11,5,11,8],[12,0,12,1]]}
[{"$f":"+'Cover Page'!$B$29","v":"Annual Performance Report 2021"},null,null,null,{"$f":"+'Cover Page'!$B$33","v":"SUEZ R&R UK LTD \nSUEZ R&R  Tees Valley – Energy from Waste Facility\n Tees Valley – Energy from Waste Facility"}]
[]
["Summary of Permit Compliance"]
[]
["Compliance with permit limits for continuously monitored pollutants"]
[]
["The plant met its emission limits as shown in the table below:"]
["Substance",null,"Percentage time compliant during operation"]
[null,null,"Half-hourly limit",null,null,"Daily limit"]
["Particulates",null,1,null,null,1]
["Oxides of nitrogen",null,1,null,null,1]
["Sulphur dioxide",null,0.99980000000000002,null,null,1]
["Carbon monoxide",null,1,null,null,1]
["Total organic carbon",null,1,null,null,1]
["Hydrogen chloride",null,1,null,null,1]
["Hydrogen fluoride",null,"N/A",null,null,"N/A"]
[]
[]
["Summary of any notifications or non-compliances under the permit"]
["Date","Summary of notification or non-compliance [including Line/Reference]",null,null,"Reason ",null,null,"Measures taken to prevent reoccurrence"]
["09.03.2021","Line 1 - SO2 - High levels due to non conforming waste",null,null,"On the day the breach occurred the SO2 procedure was followed by the Operations Team.\n•\tLowered the GSA cooling setpoint to 145 degrees,  to introduce more water, increased the reactivity of the lime.\n•\tLime addition rate was increased to the maximum – 100%\n•\tFurnace set was reduced\n•\tWaste feed was stopped.\n\nAll these control measures were in place but it was not possible to bring the SO2 back under control during this period. Waste feed did not recommence until SO2 was back within limits – 40mins later. \nThe subsequent half hourly was below the ELV @ 65.5mg/Nm3. \nA RCA was conducted and the main focus was non-conforming waste. ",null,null,"•\tFocus on CA deliveries by targeting weekend – Spotchecks\n•\tTBT to be issued – Mixing of waste\n•\tReview of Pit procedure ( segregation of CA waste)\n•\tReview Induction and SOP for new staff at the CA site in relation to segregation of waste\n•\tSpeak with public about the contents of the waste being brought in – to identify if plasterboard is mixed in with the waste"]
["30.12.2021","Line 3 Invalid half hour "]
[]
["17/18 - October 2020","L1 23.00 -17/10/20     L2 14.30 18/10/20 - Ended L1 02.00-18/10/20      L2 16.18  18/10/20 Fault on the dust CEMS system",null,null,"Brought both lines off.  \nOn the 17th/18th October both Lines 1&2 has dust issues.\nLine 1 – the dust readings went to maximum scale at approximately 23.00hrs. Routine checks were carried out on the bag filter compartments by isolating each independent compartment, there was no reduction in the readings, so this suggested false readings on the dust analyser. Checks were carried out on site by the Maintenance team and they were unable to rectify the false readings, therefore Line 1 was shutdown. \nOn the 18th Line 2 dust readings dropped to zero, therefor the line was also shutdown.\nThe decision was taken to bring both lines off due to failure of the continuous emissions monitoring system and having no back up dust analyser for Lines 1&2.  \nA specialist contractor visited site and identified that the dust analysers had, had a CPU failure. A full system diagnostic was carried out and both CPU unit was replaced, and readings were established on both lines. \nConsideration is now being made to installed a back-up dust analyser. "]
[]
[]
["Summary of any complaints received and actions to taken to resolve them."]
["Date","Summary of complaint [including Line/Reference]",null,null,"Reason *",null,null,"Measures taken to prevent reoccurrence"]
[null,"Annual Performance Report 2021"]
[]
[]
[]
[]
[null,null,null,null,"* including whether substantiated by the operator or the EA"]
[]
[]
[]
[]
[null,null,2021]

{"sheet":"Improvements","index":8,"n_rows":39,"n_cols":5,"rows_kept":39,"cut":false,"hidden":false,"merged":[[37,0,37,9],[38,0,47,9],[4,0,4,9],[5,0,13,9],[15,0,15,9],[16,0,24,9],[26,0,26,9],[27,0,35,9]]}
[{"$f":"+'Cover Page'!$B$29","v":"Annual Performance Report 2021"},null,null,null,{"$f":"+'Cover Page'!$B$33","v":"SUEZ R&R UK LTD \nSUEZ R&R  Tees Valley – Energy from Waste Facility\n Tees Valley – Energy from Waste Facility"}]
[]
["Summary of Plant Improvements"]
[]
["Summary of any efficiency improvements that have been completed within the year."]
["Modifications conducted to divert boiler ash into bottom ash  on line 3 in accordance with BAT as identified in the latest BREF review document. "]
[]
[]
[]
[]
[]
[]
[]
[]
[]
["Summary of any permit improvement conditions that have been completed within the year and the resulting environmental benefits."]
["None"]
[]
[]
[]
[]
[]
[]
[]
[]
[]
["Summary of any changes to the plant or operating techniques which required a variation to the permit and a summary of the resulting environmental impact."]
["None"]
[]
[]
[]
[]
[]
[]
[]
[]
[]
["Summary of any other improvements made to the plant or planned to be made and a summary of the resulting environmental benefits."]
["Modifications to be conducted on Line 3 during 2022 to divert boiler ash into the bottom ash residue in accordance with BAT as identified in the latest BREF review document.  FGT optimisation to be conducted on Lines 1,2.4&5.  Replacement of main turbine bypass valve on Line 3 following major failure in 2021"]

{"sheet":"Public Liasion","index":9,"n_rows":39,"n_cols":5,"rows_kept":39,"cut":false,"hidden":false,"merged":[[23,0,24,1],[23,2,24,9],[25,0,26,1],[25,2,26,9],[28,0,28,9],[17,0,18,1],[17,2,18,9],[19,0,20,1],[19,2,20,9],[21,0,22,1],[21,2,22,9],[16,0,16,1],[16,2,16,9],[5,0,5,1],[5,2,5,9],[6,0,7,1],[6,2,7,9],[8,0,9,1],[8,2,9,9],[10,0,11,1],[10,2,11,9],[15,0,15,9],[12,0,13,1],[12,2,13,9]]}
[{"$f":"+'Cover Page'!$B$29","v":"Annual Performance Report 2021"},null,null,null,{"$f":"+'Cover Page'!$B$33","v":"SUEZ R&R UK LTD \nSUEZ R&R  Tees Valley – Energy from Waste Facility\n Tees Valley – Energy from Waste Facility"}]
[]
["Details of Public & Stakeholder Liasion"]
[]
["Summary of events held during the reporting year."]
["Date",null,"Description"]
["Monthly",null,"STV Lines 1&2 - Cleveland Joint Waste Authority Contract Meetings"]
[]
[null,null,"STV Lines 1&2 Board Meeting"]
[]
["Monthly",null,"South Tyne and Wear - Monthly Client Liaison Meetings"]
[]
[null,null,"South Tyne and Wear - Annual Client health and Safety visit"]
[]
[]
["List of events planned for next year"]
["Date",null,"Description"]
["Monthly",null,"STV Lines 1&2 - Cleveland Joint Waste Authority Contract Meetings"]
[]
["Six monthly – dates still to be agreed",null,"STV Lines 1&2 Board Meeting"]
[]
["Monthly",null,"South Tyne and Wear - Monthly Client Liaison Meetings"]
[]
["Quarter 4 – date still to be agreed",null,"South Tyne and Wear - Annual Client health and Safety visit"]
[]
[]
[]
[]
["If you wish to be involved in the public liasion programme, please contact _________________"]
[]
[]
[]
[]
[]
[]
[]
[]
[]
[null,null,2021]

{"sheet":"Residue Quality ","index":10,"n_rows":36,"n_cols":6,"rows_kept":36,"cut":false,"hidden":false,"merged":[[35,0,40,6],[32,3,32,4],[34,0,34,6],[27,0,28,1],[29,0,29,1],[30,0,30,1],[31,0,31,1],[32,0,32,1],[29,3,29,4],[30,3,30,4],[29,5,29,6],[30,5,30,6],[31,5,31,6],[32,5,32,6],[20,0,21,1],[20,2,21,6],[22,0,23,1],[22,2,23,6],[31,3,31,4],[27,2,28,2],[28,3,28,4],[28,5,28,6],[27,3,27,6],[26,0,26,6],[5,0,6,6],[7,0,8,6],[9,0,10,6],[14,0,15,1],[14,2,15,6],[16,0,17,1],[16,2,17,6],[18,0,19,1],[18,2,19,6],[12,0,12,6],[13,0,13,1],[13,2,13,6]]}
[{"$f":"+'Cover Page'!$B$29","v":"Annual Performance Report 2021"},null,null,null,{"$f":"+'Cover Page'!$B$33","v":"SUEZ R&R UK LTD \nSUEZ R&R  Tees Valley – Energy from Waste Facility\n Tees Valley – Energy from Waste Facility"}]
[]
["Residue Quality Monitoring Requirements"]
[]
["Summary of monitoring undertaken and compliance"]
["Quarterly IBA and APCR samples are taken on Lines 1-5"]
[]
["Weekly hazard assessments are carried out on Lines 1-5"]
[]
[]
[]
[]
["Commentary on any specific events"]
["Date & Event",null,"Description"]
[]
[]
[]
[]
[]
[]
[]
[]
[]
[]
[]
[]
["Residue Quality Monitoring Results"]
["Parameter (unit) ",null,"Limit","Normal Operation "]
[null,null,null,"Bottom ash  ",null,"APC Residues"]
["Loss on Ignition (%)",null,"<5%","-"]
["ToC (%)",null,"<3%","STV 1&2 - 0.90  STV 3 -0.94 STV 4&5 - 1.28"]
["No. of Assessments Undertaken",null,"---","3 per quarter Lines 1&2, Line 3, Lines 4&5"]
["No. of Hazardous Assessments",null,"---","Weekly hazard assessments unless Plant is on outage"]
[]
["Comments :"]
["Quarterly samples are taken for 3 lines none of the samples results for TOC were above 3%"]

{"sheet":"Water","index":11,"n_rows":39,"n_cols":10,"rows_kept":39,"cut":false,"hidden":false,"merged":[[29,0,29,2],[29,3,29,5],[26,0,26,2],[26,3,26,5],[27,0,27,2],[27,3,27,5],[28,0,28,2],[28,3,28,5],[23,0,23,2],[23,3,23,5],[24,0,24,2],[24,3,24,5],[25,0,25,2],[25,3,25,5],[21,0,21,9],[22,0,22,2],[22,3,22,5],[14,0,15,1],[14,2,15,9],[16,0,17,1],[16,2,17,9],[18,0,19,1],[18,2,19,9],[5,0,6,9],[7,0,8,9],[9,0,10,9],[12,0,12,9],[13,0,13,1],[13,2,13,9]]}
[{"$f":"+'Cover Page'!$B$29","v":"Annual Performance Report 2021"},null,null,null,{"$f":"+'Cover Page'!$B$33","v":"SUEZ R&R UK LTD \nSUEZ R&R  Tees Valley – Energy from Waste Facility\n Tees Valley – Energy from Waste Facility"}]
[]
["Emissions to Water"]
[]
["Summary of monitoring undertaken and compliance"]
["A permit requirement is for Suspended Solids at the Haverton Hill facility. These samples are taken on a monthly basis"]
[]
[]
[]
[]
[]
[]
["Commentary on any specific events"]
["Date & Event",null,"Description"]
[]
[]
[]
[]
[]
[]
[]
["Emissions to Water / Sewer"]
["Parameter",null,null,"Monitoring Frequency",null,null,"Limit","Target","Max.","Average"]
["Suspended Solids",null,null,"Monthly ",null,null,"50mg/m3","50mg/m3",45,11.3]
[]
[]
[]
[]
[]
[]
[]
[]
[]
[]
[]
[]
[]
[]
[null,null,2021]

{"sheet":"Air (periodic)","index":12,"n_rows":39,"n_cols":13,"rows_kept":39,"cut":false,"hidden":false,"merged":[[18,3,18,4],[27,3,27,4],[33,3,33,4],[19,3,19,4],[20,3,20,4],[21,3,21,4],[22,3,22,4],[23,3,23,4],[24,3,24,4],[31,3,31,4],[25,3,25,4],[26,3,26,4],[28,3,28,4],[13,3,13,4],[14,3,14,4],[15,3,15,4],[16,3,16,4],[17,3,17,4],[38,0,38,9],[19,0,19,1],[20,0,20,1],[21,0,21,1],[34,3,34,4],[35,3,35,4],[33,0,33,1],[34,0,34,1],[35,0,35,1],[36,0,36,1],[24,0,24,1],[32,3,32,4],[39,0,40,9],[25,0,25,1],[26,0,26,1],[22,0,22,1],[23,0,23,1],[37,0,37,1],[27,0,27,1],[28,0,28,1],[29,0,29,1],[30,0,30,1],[31,0,31,1],[32,0,32,1],[37,3,37,4],[29,3,29,4],[30,3,30,4],[36,3,36,4],[16,0,16,1],[17,0,17,1],[18,0,18,1],[13,0,13,1],[14,0,14,1],[15,0,15,1],[12,0,12,1],[11,3,11,4],[12,3,12,4],[9,0,10,1],[9,5,9,9],[9,3,10,4],[9,2,10,2],[5,12,8,15],[9,12,11,15],[8,0,8,9],[5,0,6,9],[11,0,11,1]]}
[{"$f":"+'Cover Page'!$B$29","v":"Annual Performance Report 2021"},null,null,null,{"$f":"+'Cover Page'!$B$33","v":"SUEZ R&R UK LTD \nSUEZ R&R  Tees Valley – Energy from Waste Facility\n Tees Valley – Energy from Waste Facility"}]
[]
["Emissions to Air (periodically monitored)"]
[]
["Summary of monitoring undertaken, standards used and compliance",null,null,null,null,null,null,null,null,null,null,null,"Notes:"]
["Monitoring carried out 6 monthly ",null,null,null,null,null,null,null,null,null,null,null,"Template may require adjustment for any bespoke monitoring requirements of permit. "]
[]
[]
["Results of emissions to air that are periodically monitored"]
["Substance",null,"Ref. Period","Emission Limit Value",null,"Average",null,null,null,null,null,null,"User to add additional tables as necessary, depending on whether quarterly or bi-annual reporting is required for the compliance year"]
[null,null,null,null,null,"A1","A2","A3","A4","A5"]
["Hydrogen fluoride",null,"1 hr","2 mg/m3",null,6.2E-2,6.25E-2,6.0499999999999998E-2,6.25E-2,5.6000000000000001E-2]
["Cd and Th and their compounds",null,"6-8hrs","0.05 mg/m3",null,2.9849999999999998E-3,1.15E-3,4.3499999999999997E-3,1.1100000000000001E-3,1.225E-3]
["Hg and its compounds",null,"6-8hrs","0.05 mg/m3",null,2.0049999999999998E-2,1.2149999999999999E-3,7.6999999999999996E-4,9.2000000000000003E-4,9.1500000000000001E-4]
["Sb, As, Pb, Cr, Co, Cu, Mn, Ni, V and their compounds",null,"6-8hrs","0.5 mg/m3",null,2.0500000000000001E-2,3.2000000000000001E-2,5.7000000000000002E-2,0.27700000000000002,2.4500000000000001E-2]
["Dioxins & Furans (I-TEQ)",null,"6-8hrs","0.1 ng/m3",null,1.155E-3,2.0999999999999999E-3,2.0500000000000002E-3,1.9E-3,2.8600000000000001E-3]
["PCBs (WHO-TEQ Humans / Mammals)",null,"6-8hrs","None set ng/m3",null,2.0000000000000001E-4,2.05E-4,2.0100000000000001E-4,7.3999999999999996E-5,2.165E-4]
["PCBs (WHO-TEQ Fish)",null,"6-8hrs","None set ng/m3",null,9.6500000000000008E-6,1.065E-5,1.0900000000000001E-5,4.1500000000000001E-6,1.1E-5]
["PCBs (WHO-TEQ Birds)",null,"6-8hrs","None set ng/m3",null,6.1499999999999999E-4,4.2050000000000004E-3,6.8000000000000005E-4,4.2000000000000002E-4,5.8500000000000002E-4]
["Dioxins & Furans (WHO-TEQ Humans / Mammals)",null,"6-8hrs","None set ng/m3",null,1.16E-3,2E-3,2.0500000000000002E-3,1.8500000000000001E-3,2.846E-3]
["Dioxins & Furans (WHO-TEQ Fish)",null,"6-8hrs","None set ng/m3",null,1.155E-3,2.2499999999999998E-3,2.2499999999999998E-3,2E-3,3.13E-3]
["Dioxins & Furans (WHO-TEQ Birds)",null,"6-8hrs","None set ng/m3",null,1.8500000000000001E-3,3.2499999999999999E-3,3.8500000000000001E-3,3.65E-3,5.5999999999999999E-3]
["Anthanthrene",null,"6-8hrs","None set µg/m3",null,2.0999999999999999E-3,1.9E-3,1.6999999999999999E-3,1.3500000000000001E-3,1.4499999999999999E-3]
["Benzo(a)anthracene",null,"6-8hrs","None set µg/m3",null,2.0999999999999999E-3,1.9E-3,1.6999999999999999E-3,2.65E-3,1.65E-3]
["Benzo(a)pyrene",null,"6-8hrs","None set µg/m3",null,2.0999999999999999E-3,1.9E-3,1.6999999999999999E-3,1.25E-3,1.4499999999999999E-3]
["Benzo(b)fluoranthene",null,"6-8hrs","None set µg/m3",null,2.0999999999999999E-3,1.9E-3,1.6999999999999999E-3,1.75E-3,3.7000000000000002E-3]
["Benzo(b)naptho(2,1-d) thiophene",null,"6-8hrs","None set µg/m3",null,2.0999999999999999E-3,2.3E-3,1.75E-3,2.2499999999999998E-3,5.1999999999999998E-3]
["Benzo(c)phenanthrene",null,"6-8hrs","None set µg/m3",null,2.0999999999999999E-3,1.9E-3,1.6999999999999999E-3,1.3500000000000001E-3,1.5E-3]
["Benzo(ghi)perylene",null,"6-8hrs","None set µg/m3",null,2.0999999999999999E-3,1.9E-3,1.6999999999999999E-3,1.3500000000000001E-3,1.4499999999999999E-3]
["Benzo(k)fluoranthene",null,"6-8hrs","None set µg/m3",null,21,1.9E-3,1.6999999999999999E-3,1.3500000000000001E-3,1.4499999999999999E-3]
["Cholanthrene",null,"6-8hrs","None set µg/m3",null,2.0999999999999999E-3,1.9E-3,1.6999999999999999E-3,1.3500000000000001E-3,1.4499999999999999E-3]
["Chrysene",null,"6-8hrs","None set µg/m3",null,3.2499999999999999E-3,3.0999999999999999E-3,3.2499999999999999E-3,3.0500000000000002E-3,2.7000000000000001E-3]
["Cyclopenta(cd)pyrene",null,"6-8hrs","None set µg/m3",null,2.0999999999999999E-3,1.9E-3,1.6999999999999999E-3,2.3999999999999998E-3,1.4499999999999999E-3]
["Dibenzo(ai)pyrene",null,"6-8hrs","None set µg/m3",null,2.0999999999999999E-3,1.9E-3,1.6999999999999999E-3,1.3500000000000001E-3,1.4499999999999999E-3]
["Dibenzo(ah)anthracene",null,"6-8hrs","None set µg/m3",null,2.0999999999999999E-3,1.9E-3,1.6999999999999999E-3,1.3500000000000001E-3,1.4499999999999999E-3]
["Fluoranthene",null,"6-8hrs","None set µg/m3",null,0.02,0.01,1.3350000000000001E-2,3.0499999999999999E-2,5.7000000000000002E-2]
["Indeno(123-cd) pyrene",null,"6-8hrs","None set µg/m3",null,2.0999999999999999E-3,1.9E-3,1.6999999999999999E-3,1.3500000000000001E-3,1.4499999999999999E-3]
["Naphthalene",null,"6-8hrs","None set µg/m3",null,0.15,0.16500000000000001,0.11,0.11849999999999999,0.1195]
["Comments :"]

{"sheet":"Air (CEMS)","index":13,"n_rows":39,"n_cols":16,"rows_kept":39,"cut":false,"hidden":false,"merged":[[27,0,27,12],[29,0,30,12],[13,0,14,0],[5,0,6,12],[7,0,8,12],[10,0,10,12],[11,0,12,0],[11,2,12,2],[11,1,12,1],[11,3,11,4],[11,5,11,6],[11,7,11,8],[11,9,11,10],[11,11,11,12]]}
[{"$f":"+'Cover Page'!$B$29","v":"Annual Performance Report 2021"},null,null,null,null,null,null,null,{"$f":"+'Cover Page'!$B$33","v":"SUEZ R&R UK LTD \nSUEZ R&R  Tees Valley – Energy from Waste Facility\n Tees Valley – Energy from Waste Facility"}]
[]
["Emissions to Air (continously monitored)"]
[null,null,null,null,null,null,null,null,null,null,null,null,null,null,null,"Notes:"]
["Summary of monitoring undertaken, standards used and compliance",null,null,null,null,null,null,null,null,null,null,null,null,null,null,"Template may require adjustment for any bespoke monitoring requirements of permit"]
["Continuous monitoring "]
[]
[]
[]
[]
["Results of emissions to air that are continuously monitored"]
["Substance","Reference Period","Emission Limit Value","A1",null,"A2",null,"A3",null,"A4",null,"A5"]
[null,null,null,"Max.","Avg.","Max.","Avg.","Max.","Avg.","Max.","Avg.","Max.","Avg."]
["Oxides of nitrogen","Daily mean","200 mg/m3 ",{"$f":"NOx!$O$19","v":146},{"$f":"NOx!$N$19","v":95.050000000000011},{"$f":"NOx!$O$34","v":181},{"$f":"NOx!$N$34","v":130.82500000000002},{"$f":"NOx!$O$49","v":166},{"$f":"NOx!$N$49","v":152.9},{"$f":"NOx!$O$64","v":191},{"$f":"NOx!$N$64","v":190},{"$f":"NOx!$O$79","v":191},{"$f":"NOx!$N$79","v":190}]
[null,"½ hourly mean","400 mg/m3 ",{"$f":"NOx!$M$19","v":234},{"$f":"NOx!$L$19","v":95.016666666666666},{"$f":"NOx!$M$34","v":309},{"$f":"NOx!$L$34","v":150.66666666666666},{"$f":"NOx!$M$49","v":312},{"$f":"NOx!$L$49","v":152.98333333333332},{"$f":"NOx!$M$64","v":234},{"$f":"NOx!$L$64","v":332.66666666666669},{"$f":"NOx!$M$79","v":225},{"$f":"NOx!$L$79","v":190}]
["Particulates","Daily mean","10 mg/m3",{"$f":"Particulates!$O$19","v":9},{"$f":"Particulates!$N$19","v":1.3583333333333334},{"$f":"Particulates!$O$34","v":1.9},{"$f":"Particulates!$N$34","v":0.95833333333333337},{"$f":"Particulates!$O$49","v":6.1},{"$f":"Particulates!$N$49","v":1.4666666666666666},{"$f":"Particulates!$O$64","v":2.4},{"$f":"Particulates!$N$64","v":0.7583333333333333},{"$f":"Particulates!$O$79","v":1.7},{"$f":"Particulates!$N$79","v":0.7416666666666667}]
[null,"½ hourly mean","30 mg/m3 ",{"$f":"Particulates!$M$19","v":10.6},{"$f":"Particulates!$L$19","v":1.3583333333333334},{"$f":"Particulates!$M$34","v":6},{"$f":"Particulates!$L$34","v":0.95833333333333337},{"$f":"Particulates!$M$49","v":28.4},{"$f":"Particulates!$L$49","v":1.4466666666666665},{"$f":"Particulates!$M$64","v":13.2},{"$f":"Particulates!$L$64","v":0.7583333333333333},{"$f":"Particulates!$M$79","v":3.4},{"$f":"Particulates!$L$79","v":0.7416666666666667}]
["Total Organic Carbon ","Daily mean","10 mg/m3 ",{"$f":"TOC!$O$19","v":2.2000000000000002},{"$f":"TOC!$N$19","v":0.42499999999999988},{"$f":"TOC!$O$34","v":7},{"$f":"TOC!$N$34","v":0.79999999999999993},{"$f":"TOC!$O$49","v":1.1000000000000001},{"$f":"TOC!$N$49","v":0.35833333333333334},{"$f":"TOC!$O$64","v":0.8},{"$f":"TOC!$N$64","v":9.9999999999999992E-2},{"$f":"TOC!$O$79","v":0.5},{"$f":"TOC!$N$79","v":0.19999999999999998}]
[null,"½ hourly mean","20 mg/m3 ",{"$f":"TOC!$M$19","v":37.200000000000003},{"$f":"TOC!$L$19","v":0.42499999999999988},{"$f":"TOC!$M$34","v":70},{"$f":"TOC!$L$34","v":0.79166666666666663},{"$f":"TOC!$M$49","v":69.8},{"$f":"TOC!$L$49","v":0.35833333333333334},{"$f":"TOC!$M$64","v":15.6},{"$f":"TOC!$L$64","v":9.9999999999999992E-2},{"$f":"TOC!$M$79","v":15},{"$f":"TOC!$L$79","v":0.19999999999999998}]
["Hydrogen chloride ","Daily mean","10 mg/m3 ",{"$f":"HCl!$O$19","v":4.8},{"$f":"HCl!$N$19","v":3.5750000000000006},{"$f":"HCl!$O$34","v":68},{"$f":"HCl!$N$34","v":1.9666666666666666},{"$f":"HCl!$O$49","v":5.6},{"$f":"HCl!$N$49","v":4.3666666666666663},{"$f":"HCl!$O$64","v":1.8},{"$f":"HCl!$N$64","v":1.1666666666666667},{"$f":"HCl!$O$79","v":3.1},{"$f":"HCl!$N$79","v":1.2833333333333334}]
[null,"½ hourly mean","60 mg/m3 ",{"$f":"HCl!$M$19","v":31.1},{"$f":"HCl!$L$19","v":2.0666666666666664},{"$f":"HCl!$M$34","v":59},{"$f":"HCl!$L$34","v":1.9666666666666666},{"$f":"HCl!$M$49","v":205},{"$f":"HCl!$L$49","v":4.3749999999999991},{"$f":"HCl!$M$64","v":6.9},{"$f":"HCl!$L$64","v":1.1666666666666667},{"$f":"HCl!$M$79","v":12.2},{"$f":"HCl!$L$79","v":1.2833333333333334}]
["Sulphur dioxide","Daily mean","50 mg/m3 ",{"$f":"'SO2'!$O$19","v":34.700000000000003},{"$f":"'SO2'!$N$19","v":18.841666666666669},{"$f":"'SO2'!$O$34","v":41},{"$f":"'SO2'!$N$34","v":19.308333333333334},{"$f":"'SO2'!$O$49","v":27.4},{"$f":"'SO2'!$N$49","v":9.5416666666666661},{"$f":"'SO2'!$O$64","v":35},{"$f":"'SO2'!$N$64","v":20.266666666666666},{"$f":"'SO2'!$O$79","v":37},{"$f":"'SO2'!$N$79","v":19.25}]
[null,"½ hourly mean","200 mg/m3 ",{"$f":"'SO2'!$M$19","v":248},{"$f":"'SO2'!$L$19","v":18.841666666666669},{"$f":"'SO2'!$M$34","v":166},{"$f":"'SO2'!$L$34","v":19.308333333333334},{"$f":"'SO2'!$M$49","v":176},{"$f":"'SO2'!$L$49","v":9.5416666666666661},{"$f":"'SO2'!$M$64","v":105},{"$f":"'SO2'!$L$64","v":20.266666666666666},{"$f":"'SO2'!$M$79","v":100},{"$f":"'SO2'!$L$79","v":19.25}]
["Carbon monoxide ","Daily mean","50 mg/m3 ",{"$f":"'CO 95% 10 min'!Q19","v":17.8},{"$f":"'CO 95% 10 min'!P19","v":4.45},{"$f":"'CO 95% 10 min'!Q34","v":33.200000000000003},{"$f":"'CO 95% 10 min'!P34","v":7.291666666666667},{"$f":"'CO 95% 10 min'!Q49","v":42},{"$f":"'CO 95% 10 min'!P49","v":3.75},{"$f":"'CO 95% 10 min'!Q64","v":32.200000000000003},{"$f":"'CO 95% 10 min'!P64","v":6.0666666666666655},{"$f":"'CO 95% 10 min'!Q79","v":19.3},{"$f":"'CO 95% 10 min'!P79","v":6.3250000000000002}]
[null,"½ hourly mean *","100 mg/m3 *"]
[null,"95%ile 10-min avg *","150 mg/m3 *",{"$f":"'CO 95% 10 min'!M19","v":16.349999999999998},null,{"$f":"'CO 95% 10 min'!M34","v":18.858333333333334},null,{"$f":"'CO 95% 10 min'!M49","v":12.291666666666666},null,{"$f":"'CO 95% 10 min'!M64","v":6.2583333333333329},null,{"$f":"'CO 95% 10 min'!M79","v":8.0416666666666661}]
[" Ammonia","Daily mean","No limit set",{"$f":"'NH3'!$O$19","v":34.299999999999997},{"$f":"'NH3'!$N$19","v":4.3166666666666673},{"$f":"'NH3'!$O$34","v":19.7},{"$f":"'NH3'!$N$34","v":3.5166666666666675},{"$f":"'NH3'!$O$49","v":12.3},{"$f":"'NH3'!$N$49","v":2.0916666666666672},{"$f":"'NH3'!$O$64","v":5.0199999999999996},{"$f":"'NH3'!$N$64","v":0.44833333333333342},{"$f":"'NH3'!$O$79","v":4.0999999999999996},{"$f":"'NH3'!$N$79","v":1.7424999999999999}]
["* = delete or amend as appropriate"]
["Comments :","Annual Performance Report 2021"]
[]
[]
[]
[]
[]
[]
[]
[]
[]
[null,null,2021]

{"sheet":"HCl","index":14,"n_rows":79,"n_cols":17,"rows_kept":79,"cut":false,"hidden":false,"merged":[[12,16,15,18],[51,9,63,9],[66,9,78,9],[4,9,4,14],[4,1,4,3],[4,4,4,6],[48,0,51,6],[47,0,47,6],[6,9,18,9],[21,9,33,9],[36,9,48,9],[3,16,7,18],[9,16,11,18]]}
[{"$f":"+'Cover Page'!$B$29","v":"Annual Performance Report 2021"},null,null,null,{"$f":"+'Cover Page'!$B$33","v":"SUEZ R&R UK LTD \nSUEZ R&R  Tees Valley – Energy from Waste Facility\n Tees Valley – Energy from Waste Facility"}]
[]
["Monitoring of Hydrogen Chloride emissions",null,null,"Whole Installation",null,null,"See  Notes in Cell Q3",null,null,{"$f":"+A3","v":"Monitoring of Hydrogen Chloride emissions"},null,null,null,"Per Combustion Line",null,null,"Notes:"]
[null,null,null,null,null,null,null,null,null,null,null,null,null,null,null,null,"User to add logic to complete Whole installation, Table A5:G18. From the data in Per Combustion Line, Table J6:O79, subject to No. of lines installed"]
["mg/Nm3","1/2 Hourly Reference Periods",null,null,"Daily Reference Periods"]
[{"$f":"+'Cover Page'!C39","v":2021},"1/2 hourly HCl ELV","Monthly 1/2 hourly mean","Highest 1/2 hourly maximum","Daily HCl ELV","Monthly daily mean","Highest daily maximum",null,null,{"$f":"+A6","v":2021},"mg/Nm3","Monthly 1/2 hourly mean","Monthly 1/2 hourly maximum","Monthly daily mean","Monthly daily maximum"]
["Jan",60,{"$f":"AVERAGE(L7,L22,L37,L52,L67)","v":1.6600000000000001},{"$f":"MAX(M7,M22,M37,M52,M67)","v":31.1},10,{"$f":"AVERAGE(N7,N22,N37,N52,N67)","v":1.6600000000000001},{"$f":"MAX(O7,O22,O37,O52,O67)","v":4.8},null,null,"A1","Jan",2.1,31.1,2.1,4.8]
["Feb",60,{"$f":"AVERAGE(L8,L23,L38,L53,L68)","v":1.7},{"$f":"MAX(M8,M23,M38,M53,M68)","v":18.2},10,{"$f":"AVERAGE(N8,N23,N38,N53,N68)","v":1.7},{"$f":"MAX(O8,O23,O38,O53,O68)","v":9.9},null,null,null,"Feb",2.1,14.7,2.1,3.8]
["Mar",60,{"$f":"AVERAGE(L9,L24,L39,L54,L69)","v":1.92},31.3,10,1.92,3.8,null,null,null,"Mar",2.4,5.7,2.4,3.5,null,"Whole Installation table A5:G18:"]
["Apr",60,{"$f":"AVERAGE(L10,L25,L40,L55,L70)","v":2.2800000000000002},63,10,2.2800000000000002,5.6,null,null,null,"Apr",2.8,23,2.8,3.8,null,"Mean: for 1/2 hourly and daily periods calculate mean of values across all operational combustion lines for the month"]
["May",60,1.94,58,10,1.94,5.8,null,null,null,"May",1.9,4.9000000000000004,1.9,2.8]
["Jun",60,1.78,16.3,10,1.78,4.5,null,null,null,"Jun",2,12,2,3.9]
["Jul",60,6.32,205,10,6.3,5.0999999999999996,null,null,null,"Jul",2,5.2,2,2.7,null,"Maximum: for 1/2 hourly and daily periods use the highest value across all operational combustion lines for the month"]
["Aug",60,1.64,30.2,10,1.6599999999999997,3.7,null,null,null,"Aug",2,30.2,2.1,3.3]
["Sep",60,1.8599999999999999,30,10,1.8599999999999999,4.5,null,null,null,"Sep",2,12.4,2,3.4]
["Oct",60,1.54,5.8,10,5.14,3.8,null,null,null,"Oct",2.1,4.9000000000000004,20.100000000000001,3]
["Nov",60,{"$f":"AVERAGE(L17,#REF!,L47,L62,L77)","v":{"$error":"#REF!"}},{"$f":"MAX(M17,#REF!,M47,M62,M77)","v":{"$error":"#REF!"}},10,{"$f":"AVERAGE(N17,#REF!,N47,N62,N77)","v":{"$error":"#REF!"}},{"$f":"MAX(O17,#REF!,O47,O62,O77)","v":{"$error":"#REF!"}},null,null,null,"Nov",1.7,2.5,1.7,1.9]
["Dec",60,1.8199999999999998,59,10,1.8199999999999998,68,null,null,null,"Dec",1.7,30.6,1.7,3.5]
[null,null,null,null,null,null,null,null,null,null,"Annual",{"$f":"AVERAGE(L7:L18)","v":2.0666666666666664},{"$f":"MAX(M7:M18)","v":31.1},{"$f":"AVERAGE(N7:N18)","v":3.5750000000000006},{"$f":"MAX(O7:O18)","v":4.8}]
[]
[null,null,null,null,null,null,null,null,null,{"$f":"+A6","v":2021},"mg/Nm3","Monthly 1/2 hourly mean","Monthly 1/2 hourly maximum","Monthly daily mean","Monthly daily maximum"]
[null,null,null,null,null,null,null,null,null,"A2","Jan",2,12.8,2,3.4]
[null,null,null,null,null,null,null,null,null,null,"Feb",2.5,18.2,2.5,9.9]
[null,null,null,null,null,null,null,null,null,null,"Mar",2.4,7.7,2.4,3.8]
[null,null,null,null,null,null,null,null,null,null,"Apr",2.4,29.5,2.4,4.0999999999999996]
[null,null,null,null,null,null,null,null,null,null,"May",1.8,58,1.8,5.8]
[null,null,null,null,null,null,null,null,null,null,"Jun",1.9,16.3,1.9,3]
[null,null,null,null,null,null,null,null,null,null,"Jul",1.3,4.8,1.3,2.2999999999999998]
[null,"Annual Performance Report 2021",null,null,null,null,null,null,null,null,"Aug",1.2,10.199999999999999,1.2,2]
[null,null,null,null,null,null,null,null,null,null,"Sep",2.1,30,2.1,4.5]
[null,null,null,null,null,null,null,null,null,null,"Oct",1.4,5.4,1.4,2.6]
[null,null,null,null,null,null,null,null,null,null,"Nov",1.9,14.9,1.9,4.9000000000000004]
[null,null,null,null,null,null,null,null,null,null,"Dec",2.7,59,2.7,68]
[null,null,null,null,null,null,null,null,null,null,"Annual",{"$f":"AVERAGE(L22:L33)","v":1.9666666666666666},{"$f":"MAX(M22:M33)","v":59},{"$f":"AVERAGE(N22:N33)","v":1.9666666666666666},{"$f":"MAX(O22:O33)","v":68}]
[]
[null,null,null,null,null,null,null,null,null,{"$f":"+A6","v":2021},"mg/Nm3","Monthly 1/2 hourly mean","Monthly 1/2 hourly maximum","Monthly daily mean","Monthly daily maximum"]
[null,null,null,null,null,null,null,null,null,"A3","Jan",2.4,21.7,2.4,3.9]
[null,null,null,null,null,null,null,null,null,null,"Feb",1.7,7.4,1.7,3.6]
[null,null,2021,null,null,null,null,null,null,null,"Mar",2.1,31.3,2.1,3.5]
[null,null,null,null,null,null,null,null,null,null,"Apr",3.3,63,3.3,5.6]
[null,null,null,null,null,null,null,null,null,null,"May",3.6,9.4,3.6,5.2]
[null,null,null,null,null,null,null,null,null,null,"Jun",2.9,11,2.9,4.5]
[null,null,null,null,null,null,null,null,null,null,"Jul",25.1,205,25,5.0999999999999996]
[null,null,null,null,null,null,null,null,null,null,"Aug",2.2999999999999998,7.4,2.2999999999999998,3.7]
[null,null,null,null,null,null,null,null,null,null,"Sep",2.8,7.6,2.8,4.4000000000000004]
[null,null,null,null,null,null,null,null,null,null,"Oct",1.9,5.8,1.9,3.8]
[null,null,null,null,null,null,null,null,null,null,"Nov",2,10.4,2,3.7]
["Comments :",null,null,null,null,null,null,null,null,null,"Dec",2.4,9.5,2.4,4.5999999999999996]
[null,null,null,null,null,null,null,null,null,null,"Annual",{"$f":"AVERAGE(L37:L48)","v":4.3749999999999991},{"$f":"MAX(M37:M48)","v":205},{"$f":"AVERAGE(N37:N48)","v":4.3666666666666663},{"$f":"MAX(O37:O48)","v":5.6}]
[]
[null,null,null,null,null,null,null,null,null,{"$f":"+A6","v":2021},"mg/Nm3","Monthly 1/2 hourly mean","Monthly 1/2 hourly maximum","Monthly daily mean","Monthly daily maximum"]
[null,null,null,null,null,null,null,null,null,"A4","Jan",1,3.2,1,1.5]
[null,null,null,null,null,null,null,null,null,null,"Feb",1.1000000000000001,2.8,1.1000000000000001,1.4]
[null,null,null,null,null,null,null,null,null,null,"Mar",1.2,3.4,1.2,1.7]
[null,null,null,null,null,null,null,null,null,null,"Apr",1.4,3,1.4,1.7]
[null,null,null,null,null,null,null,null,null,null,"May",1.2,2.6,1.2,1.8]
[null,null,null,null,null,null,null,null,null,null,"Jun",0.9,3,0.9,1.5]
[null,null,null,null,null,null,null,null,null,null,"Jul",1.5,5.3,1.5,1.8]
[null,null,null,null,null,null,null,null,null,null,"Aug",1.3,3.4,1.3,1.7]
[null,null,null,null,null,null,null,null,null,null,"Sep",1.2,3,1.2,1.5]
[null,null,null,null,null,null,null,null,null,null,"Oct",1,3.7,1,1.5]
[null,null,null,null,null,null,null,null,null,null,"Nov",1.1000000000000001,6.9,1.1000000000000001,1.7]
[null,null,null,null,null,null,null,null,null,null,"Dec",1.1000000000000001,3,1.1000000000000001,1.4]
[null,null,null,null,null,null,null,null,null,null,"Annual",{"$f":"AVERAGE(L52:L63)","v":1.1666666666666667},{"$f":"MAX(M52:M63)","v":6.9},{"$f":"AVERAGE(N52:N63)","v":1.1666666666666667},{"$f":"MAX(O52:O63)","v":1.8}]
[]
[null,null,null,null,null,null,null,null,null,{"$f":"+A6","v":2021},"mg/Nm3","Monthly 1/2 hourly mean","Monthly 1/2 hourly maximum","Monthly daily mean","Monthly daily maximum"]
[null,null,null,null,null,null,null,null,null,"A5","Jan",0.8,2.8,0.8,1]
[null,null,null,null,null,null,null,null,null,null,"Feb",1.1000000000000001,3,1.1000000000000001,1.5]
[null,null,null,null,null,null,null,null,null,null,"Mar",1.5,9.1999999999999993,1.5,2.4]
[null,null,null,null,null,null,null,null,null,null,"Apr",1.5,12.2,1.5,2]
[null,null,null,null,null,null,null,null,null,null,"May",1.2,4.8,1.2,1.9]
[null,null,null,null,null,null,null,null,null,null,"Jun",1.2,6.2,1.2,3.1]
[null,null,null,null,null,null,null,null,null,null,"Jul",1.7,4.2,1.7,2.2999999999999998]
[null,null,null,null,null,null,null,null,null,null,"Aug",1.4,3.5,1.4,2.1]
[null,null,null,null,null,null,null,null,null,null,"Sep",1.2,4.3,1.2,2.1]
[null,null,null,null,null,null,null,null,null,null,"Oct",1.3,3.3,1.3,1.8]
[null,null,null,null,null,null,null,null,null,null,"Nov",1.3,4.5,1.3,2.1]
[null,null,null,null,null,null,null,null,null,null,"Dec",1.2,3.1,1.2,1.7]
[null,null,null,null,null,null,null,null,null,null,"Annual",{"$f":"AVERAGE(L67:L78)","v":1.2833333333333334},{"$f":"MAX(M67:M78)","v":12.2},{"$f":"AVERAGE(N67:N78)","v":1.2833333333333334},{"$f":"MAX(O67:O78)","v":3.1}]

{"sheet":"SO2","index":15,"n_rows":79,"n_cols":17,"rows_kept":79,"cut":false,"hidden":false,"merged":[[3,16,7,18],[9,16,11,18],[12,16,15,18],[66,9,78,9],[4,1,4,3],[4,4,4,6],[4,9,4,14],[6,9,18,9],[21,9,33,9],[36,9,48,9],[47,0,47,6],[48,0,51,6],[51,9,63,9]]}
[{"$f":"+'Cover Page'!$B$29","v":"Annual Performance Report 2021"},null,null,null,{"$f":"+'Cover Page'!$B$33","v":"SUEZ R&R UK LTD \nSUEZ R&R  Tees Valley – Energy from Waste Facility\n Tees Valley – Energy from Waste Facility"}]
[]
["Monitoring of Sulphur dioxide emissions",null,null,"Whole Installation",null,null,"See  Notes in Cell Q3",null,null,{"$f":"+A3","v":"Monitoring of Sulphur dioxide emissions"},null,null,null,"Per Combustion Line",null,null,"Notes:"]
[null,null,null,null,null,null,null,null,null,null,null,null,null,null,null,null,"User to add logic to complete Whole installation, Table A5:G18. From the data in Per Combustion Line, Table J6:O79, subject to No. of lines installed"]
["mg/Nm3","1/2 Hourly Reference Periods",null,null,"Daily Reference Periods"]
[{"$f":"+'Cover Page'!C39","v":2021},"1/2 hourly SO2 ELV","Monthly 1/2 hourly mean","Highest 1/2 hourly maximum","Daily SO2 ELV","Monthly daily mean","Highest daily maximum",null,null,{"$f":"+A6","v":2021},"mg/Nm3","Monthly 1/2 hourly mean","Monthly 1/2 hourly maximum","Monthly daily mean","Monthly daily maximum"]
["Jan",200,{"$f":"AVERAGE(L7,L22,L37,L52,L67)","v":12.059999999999999},{"$f":"MAX(M7,M22,M37,M52,M67)","v":102},50,{"$f":"AVERAGE(N7,N22,N37,N52,N67)","v":12.059999999999999},{"$f":"MAX(O7,O22,O37,O52,O67)","v":30},null,null,"A1","Jan",12.2,70.400000000000006,12.2,22.1]
["Feb",200,{"$f":"AVERAGE(L8,L23,L38,L53,L68)","v":18.919999999999998},{"$f":"MAX(M8,M23,M38,M53,M68)","v":133},50,{"$f":"AVERAGE(N8,N23,N38,N53,N68)","v":18.919999999999998},{"$f":"MAX(O8,O23,O38,O53,O68)","v":37},null,null,null,"Feb",20.100000000000001,104.2,20.100000000000001,30.7]
["Mar",200,20.72,240,50,20.72,35,null,null,null,"Mar",21.5,240,21.5,34.700000000000003,null,"Whole Installation table A5:G18:"]
["Apr",200,20.18,123,50,20.18,35,null,null,null,"Apr",19,119,19,27,null,"Mean: for 1/2 hourly and daily periods calculate mean of values across all operational combustion lines for the month"]
["May",200,17.02,248,50,17.02,34,null,null,null,"May",16.3,248,16.3,33]
["Jun",200,15.6,95,50,15.6,31.1,null,null,null,"Jun",19.8,68,19.8,31.1]
["Jul",200,13.819999999999999,176,50,13.819999999999999,36,null,null,null,"Jul",12.2,68,12.2,24.7,null,"Maximum: for 1/2 hourly and daily periods use the highest value across all operational combustion lines for the month"]
["Aug",200,16.32,131,50,16.32,37,null,null,null,"Aug",14.5,131,14.5,25]
["Sep",200,15.1,166,50,15.1,29,null,null,null,"Sep",14,86,14,29]
["Oct",200,15.02,80,50,15.02,33,null,null,null,"Oct",12.8,63.2,12.8,26.3]
["Nov",200,24.580000000000002,188,50,24.580000000000002,40,null,null,null,"Nov",33.700000000000003,188,33.700000000000003,4.5]
["Dec",200,19.96,145,50,19.96,41,null,null,null,"Dec",30,145,30,0]
[null,null,null,null,null,null,null,null,null,null,"Annual",{"$f":"AVERAGE(L7:L18)","v":18.841666666666669},{"$f":"MAX(M7:M18)","v":248},{"$f":"AVERAGE(N7:N18)","v":18.841666666666669},{"$f":"MAX(O7:O18)","v":34.700000000000003}]
[]
[null,null,null,null,null,null,null,null,null,{"$f":"+A6","v":2021},"mg/Nm3","Monthly 1/2 hourly mean","Monthly 1/2 hourly maximum","Monthly daily mean","Monthly daily maximum"]
[null,null,null,null,null,null,null,null,null,"A2","Jan",15,80.5,15,22]
[null,null,null,null,null,null,null,null,null,null,"Feb",26,133,26,37]
[null,null,null,null,null,null,null,null,null,null,"Mar",26,93,26,34.4]
[null,null,null,null,null,null,null,null,null,null,"Apr",21,123,21,35]
[null,null,null,null,null,null,null,null,null,null,"May",20.5,137,20.5,32]
[null,null,null,null,null,null,null,null,null,null,"Jun",16.5,71,16.5,22]
[null,null,null,null,null,null,null,null,null,null,"Jul",12.7,57.5,12.7,19.8]
[null,"Annual Performance Report 2021",null,null,null,null,null,null,null,null,"Aug",11.6,94,11.6,16]
[null,null,null,null,null,null,null,null,null,null,"Sep",13.5,166,13.5,22]
[null,null,null,null,null,null,null,null,null,null,"Oct",13.9,55.6,13.9,24.1]
[null,null,null,null,null,null,null,null,null,null,"Nov",34,164,34,40]
[null,null,null,null,null,null,null,null,null,null,"Dec",21,125,21,41]
[null,null,null,null,null,null,null,null,null,null,"Annual",{"$f":"AVERAGE(L22:L33)","v":19.308333333333334},{"$f":"MAX(M22:M33)","v":166},{"$f":"AVERAGE(N22:N33)","v":19.308333333333334},{"$f":"MAX(O22:O33)","v":41}]
[]
[null,null,null,null,null,null,null,null,null,{"$f":"+A6","v":2021},"mg/Nm3","Monthly 1/2 hourly mean","Monthly 1/2 hourly maximum","Monthly daily mean","Monthly daily maximum"]
[null,null,null,null,null,null,null,null,null,"A3","Jan",5.6,102,5.6,19.600000000000001]
[null,null,null,null,null,null,null,null,null,null,"Feb",8.5,76.2,8.5,20.5]
[null,null,2021,null,null,null,null,null,null,null,"Mar",9.1,171,9.1,18.600000000000001]
[null,null,null,null,null,null,null,null,null,null,"Apr",6.6,96,6.6,17]
[null,null,null,null,null,null,null,null,null,null,"May",6.3,53.4,6.3,12.8]
[null,null,null,null,null,null,null,null,null,null,"Jun",11,95,11,23]
[null,null,null,null,null,null,null,null,null,null,"Jul",10.199999999999999,176,10.199999999999999,23.3]
[null,null,null,null,null,null,null,null,null,null,"Aug",10.3,61,10.3,25.5]
[null,null,null,null,null,null,null,null,null,null,"Sep",11,86,11,19]
[null,null,null,null,null,null,null,null,null,null,"Oct",11.4,80,11.4,27.4]
[null,null,null,null,null,null,null,null,null,null,"Nov",13.7,78.5,13.7,27]
["Comments :",null,null,null,null,null,null,null,null,null,"Dec",10.8,81.5,10.8,25]
[null,null,null,null,null,null,null,null,null,null,"Annual",{"$f":"AVERAGE(L37:L48)","v":9.5416666666666661},{"$f":"MAX(M37:M48)","v":176},{"$f":"AVERAGE(N37:N48)","v":9.5416666666666661},{"$f":"MAX(O37:O48)","v":27.4}]
[]
[null,null,null,null,null,null,null,null,null,{"$f":"+A6","v":2021},"mg/Nm3","Monthly 1/2 hourly mean","Monthly 1/2 hourly maximum","Monthly daily mean","Monthly daily maximum"]
[null,null,null,null,null,null,null,null,null,"A4","Jan",16.5,61.3,16.5,30]
[null,null,null,null,null,null,null,null,null,null,"Feb",23,74.5,23,33]
[null,null,null,null,null,null,null,null,null,null,"Mar",24,76,24,33]
[null,null,null,null,null,null,null,null,null,null,"Apr",28.3,69.5,28.3,35]
[null,null,null,null,null,null,null,null,null,null,"May",24,61.4,24,34]
[null,null,null,null,null,null,null,null,null,null,"Jun",16.7,57.4,16.7,26.7]
[null,null,null,null,null,null,null,null,null,null,"Jul",11,48,11,24]
[null,null,null,null,null,null,null,null,null,null,"Aug",22.2,67,22.2,30]
[null,null,null,null,null,null,null,null,null,null,"Sep",20,69,20,28]
[null,null,null,null,null,null,null,null,null,null,"Oct",18,80,18,27]
[null,null,null,null,null,null,null,null,null,null,"Nov",20.5,105,20.5,33]
[null,null,null,null,null,null,null,null,null,null,"Dec",19,81,19,29]
[null,null,null,null,null,null,null,null,null,null,"Annual",{"$f":"AVERAGE(L52:L63)","v":20.266666666666666},{"$f":"MAX(M52:M63)","v":105},{"$f":"AVERAGE(N52:N63)","v":20.266666666666666},{"$f":"MAX(O52:O63)","v":35}]
[]
[null,null,null,null,null,null,null,null,null,{"$f":"+A6","v":2021},"mg/Nm3","Monthly 1/2 hourly mean","Monthly 1/2 hourly maximum","Monthly daily mean","Monthly daily maximum"]
[null,null,null,null,null,null,null,null,null,"A5","Jan",11,61,11,15]
[null,null,null,null,null,null,null,null,null,null,"Feb",17,68,17,30]
[null,null,null,null,null,null,null,null,null,null,"Mar",23,100,23,35]
[null,null,null,null,null,null,null,null,null,null,"Apr",26,84,26,34]
[null,null,null,null,null,null,null,null,null,null,"May",18,88,18,34]
[null,null,null,null,null,null,null,null,null,null,"Jun",14,69,14,23]
[null,null,null,null,null,null,null,null,null,null,"Jul",23,61,23,36]
[null,null,null,null,null,null,null,null,null,null,"Aug",23,95,23,37]
[null,null,null,null,null,null,null,null,null,null,"Sep",17,65,17,29]
[null,null,null,null,null,null,null,null,null,null,"Oct",19,67,19,33]
[null,null,null,null,null,null,null,null,null,null,"Nov",21,72,21,30.4]
[null,null,null,null,null,null,null,null,null,null,"Dec",19,37,19,31]
[null,null,null,null,null,null,null,null,null,null,"Annual",{"$f":"AVERAGE(L67:L78)","v":19.25},{"$f":"MAX(M67:M78)","v":100},{"$f":"AVERAGE(N67:N78)","v":19.25},{"$f":"MAX(O67:O78)","v":37}]

{"sheet":"NOx","index":16,"n_rows":79,"n_cols":17,"rows_kept":79,"cut":false,"hidden":false,"merged":[[3,16,7,18],[9,16,11,18],[12,16,15,18],[66,9,78,9],[4,1,4,3],[4,4,4,6],[4,9,4,14],[6,9,18,9],[21,9,33,9],[36,9,48,9],[47,0,47,6],[48,0,51,6],[51,9,63,9]]}
[{"$f":"+'Cover Page'!$B$29","v":"Annual Performance Report 2021"},null,null,null,{"$f":"+'Cover Page'!$B$33","v":"SUEZ R&R UK LTD \nSUEZ R&R  Tees Valley – Energy from Waste Facility\n Tees Valley – Energy from Waste Facility"}]
[]
["Monitoring of Oxides of Nitrogen emissions",null,null,"Whole Installation",null,null,"See  Notes in Cell Q3",null,null,{"$f":"+A3","v":"Monitoring of Oxides of Nitrogen emissions"},null,null,null,"Per Combustion Line",null,null,"Notes:"]
[null,null,null,null,null,null,null,null,null,null,null,null,null,null,null,null,"User to add logic to complete Whole installation, Table A5:G18. From the data in Per Combustion Line, Table J6:O79, subject to No. of lines installed"]
["mg/Nm3","1/2 Hourly Reference Periods",null,null,"Daily Reference Periods"]
[{"$f":"+'Cover Page'!C39","v":2021},"1/2 hourly NOx ELV","Monthly 1/2 hourly mean","Highest 1/2 hourly maximum","Daily NOx ELV","Monthly daily mean","Highest daily maximum",null,null,{"$f":"+A6","v":2021},"mg/Nm3","Monthly 1/2 hourly mean","Monthly 1/2 hourly maximum","Monthly daily mean","Monthly daily maximum"]
["Jan",400,{"$f":"AVERAGE(L7,L22,L37,L52,L67)","v":160.16},{"$f":"MAX(M7,M22,M37,M52,M67)","v":274},200,{"$f":"AVERAGE(N7,N22,N37,N52,N67)","v":160.06},{"$f":"MAX(O7,O22,O37,O52,O67)","v":190},null,null,"A1","Jan",120,183.4,120,140]
["Feb",400,{"$f":"AVERAGE(L8,L23,L38,L53,L68)","v":152.28},{"$f":"MAX(M8,M23,M38,M53,M68)","v":214},200,{"$f":"AVERAGE(N8,N23,N38,N53,N68)","v":152.18},{"$f":"MAX(O8,O23,O38,O53,O68)","v":190},null,null,null,"Feb",95.9,151.4,95.9,124]
["Mar",400,157.06,272.39999999999998,200,157.06,190,null,null,null,"Mar",107.8,186.4,107.8,127.5,null,"Whole Installation table A5:G18:"]
["Apr",400,155.18,231,200,155.19999999999999,191,null,null,null,"Apr",100.9,178,101,119,null,"Mean: for 1/2 hourly and daily periods calculate mean of values across all operational combustion lines for the month"]
["May",400,148.4,285,200,148.4,190,null,null,null,"May",91,189,91,107]
["Jun",400,158.19999999999999,246,200,158.19999999999999,191,null,null,null,"Jun",106,202,106,146]
["Jul",400,153.74,312,200,153.80000000000001,191,null,null,null,"Jul",90.7,189,91,130,null,"Maximum: for 1/2 hourly and daily periods use the highest value across all operational combustion lines for the month"]
["Aug",400,493.6,275,200,151.19999999999999,190,null,null,null,"Aug",94,234,94,135]
["Sep",400,152.19999999999999,289,200,152.19999999999999,190,null,null,null,"Sep",91,160,91,107]
["Oct",400,150,309,200,150,190,null,null,null,"Oct",90,165,90,104]
["Nov",400,183.38,312,200,135.76,191,null,null,null,"Nov",70.900000000000006,171,70.900000000000006,85.8]
["Dec",400,147,277,200,147,191,null,null,null,"Dec",82,169,82,108]
[null,null,null,null,null,null,null,null,null,null,"Annual",{"$f":"AVERAGE(L7:L18)","v":95.016666666666666},{"$f":"MAX(M7:M18)","v":234},{"$f":"AVERAGE(N7:N18)","v":95.050000000000011},{"$f":"MAX(O7:O18)","v":146}]
[]
[null,null,null,null,null,null,null,null,null,{"$f":"+A6","v":2021},"mg/Nm3","Monthly 1/2 hourly mean","Monthly 1/2 hourly maximum","Monthly daily mean","Monthly daily maximum"]
[null,null,null,null,null,null,null,null,null,"A2","Jan",145,252,145,175]
[null,null,null,null,null,null,null,null,null,null,"Feb",130,193,130,145]
[null,null,null,null,null,null,null,null,null,null,"Mar",144,272.39999999999998,144,151]
[null,null,null,null,null,null,null,null,null,null,"Apr",145,231,145,157]
[null,null,null,null,null,null,null,null,null,null,"May",142,285,142,147]
[null,null,null,null,null,null,null,null,null,null,"Jun",152,217,152,181]
[null,null,null,null,null,null,null,null,null,null,"Jul",142,281,142,169]
[null,"Annual Performance Report 2021",null,null,null,null,null,null,null,null,"Aug",125,275,125,167]
[null,null,null,null,null,null,null,null,null,null,"Sep",133,289,133,158]
[null,null,null,null,null,null,null,null,null,null,"Oct",123,309,123,155]
[null,null,null,null,null,null,null,null,null,null,"Nov",309,171,70.900000000000006,85.5]
[null,null,null,null,null,null,null,null,null,null,"Dec",118,277,118,180]
[null,null,null,null,null,null,null,null,null,null,"Annual",{"$f":"AVERAGE(L22:L33)","v":150.66666666666666},{"$f":"MAX(M22:M33)","v":309},{"$f":"AVERAGE(N22:N33)","v":130.82500000000002},{"$f":"MAX(O22:O33)","v":181}]
[]
[null,null,null,null,null,null,null,null,null,{"$f":"+A6","v":2021},"mg/Nm3","Monthly 1/2 hourly mean","Monthly 1/2 hourly maximum","Monthly daily mean","Monthly daily maximum"]
[null,null,null,null,null,null,null,null,null,"A3","Jan",155.80000000000001,274,155.30000000000001,163.5]
[null,null,null,null,null,null,null,null,null,null,"Feb",155.5,213,155,158]
[null,null,2021,null,null,null,null,null,null,null,"Mar",153.5,211,153.5,160]
[null,null,null,null,null,null,null,null,null,null,"Apr",150,229,150,158]
[null,null,null,null,null,null,null,null,null,null,"May",129,174,129,141]
[null,null,null,null,null,null,null,null,null,null,"Jun",153,246,153,158]
[null,null,null,null,null,null,null,null,null,null,"Jul",156,312,156,166]
[null,null,null,null,null,null,null,null,null,null,"Aug",157,262,157,162]
[null,null,null,null,null,null,null,null,null,null,"Sep",157,261,157,161]
[null,null,null,null,null,null,null,null,null,null,"Oct",157,288,157,165]
[null,null,null,null,null,null,null,null,null,null,"Nov",157,312,157,162]
["Comments :",null,null,null,null,null,null,null,null,null,"Dec",155,251,155,160]
[null,null,null,null,null,null,null,null,null,null,"Annual",{"$f":"AVERAGE(L37:L48)","v":152.98333333333332},{"$f":"MAX(M37:M48)","v":312},{"$f":"AVERAGE(N37:N48)","v":152.9},{"$f":"MAX(O37:O48)","v":166}]
[]
[null,null,null,null,null,null,null,null,null,{"$f":"+A6","v":2021},"mg/Nm3","Monthly 1/2 hourly mean","Monthly 1/2 hourly maximum","Monthly daily mean","Monthly daily maximum"]
[null,null,null,null,null,null,null,null,null,"A4","Jan",190,219,190,190]
[null,null,null,null,null,null,null,null,null,null,"Feb",190,214,190,190]
[null,null,null,null,null,null,null,null,null,null,"Mar",190,216,190,190]
[null,null,null,null,null,null,null,null,null,null,"Apr",190,221,190,191]
[null,null,null,null,null,null,null,null,null,null,"May",190,210,190,190]
[null,null,null,null,null,null,null,null,null,null,"Jun",190,222,190,191]
[null,null,null,null,null,null,null,null,null,null,"Jul",190,217,190,191]
[null,null,null,null,null,null,null,null,null,null,"Aug",1902,207,190,190]
[null,null,null,null,null,null,null,null,null,null,"Sep",190,206,190,190]
[null,null,null,null,null,null,null,null,null,null,"Oct",190,217,190,190]
[null,null,null,null,null,null,null,null,null,null,"Nov",190,217,190,191]
[null,null,null,null,null,null,null,null,null,null,"Dec",190,234,190,191]
[null,null,null,null,null,null,null,null,null,null,"Annual",{"$f":"AVERAGE(L52:L63)","v":332.66666666666669},{"$f":"MAX(M52:M63)","v":234},{"$f":"AVERAGE(N52:N63)","v":190},{"$f":"MAX(O52:O63)","v":191}]
[]
[null,null,null,null,null,null,null,null,null,{"$f":"+A6","v":2021},"mg/Nm3","Monthly 1/2 hourly mean","Monthly 1/2 hourly maximum","Monthly daily mean","Monthly daily maximum"]
[null,null,null,null,null,null,null,null,null,"A5","Jan",190,203,190,190]
[null,null,null,null,null,null,null,null,null,null,"Feb",190,207,190,190]
[null,null,null,null,null,null,null,null,null,null,"Mar",190,200,190,190]
[null,null,null,null,null,null,null,null,null,null,"Apr",190,205,190,190]
[null,null,null,null,null,null,null,null,null,null,"May",190,200,190,190]
[null,null,null,null,null,null,null,null,null,null,"Jun",190,204,190,190]
[null,null,null,null,null,null,null,null,null,null,"Jul",190,202,190,190]
[null,null,null,null,null,null,null,null,null,null,"Aug",190,225,190,190]
[null,null,null,null,null,null,null,null,null,null,"Sep",190,202,190,190]
[null,null,null,null,null,null,null,null,null,null,"Oct",190,204,190,190]
[null,null,null,null,null,null,null,null,null,null,"Nov",190,204,190,191]
[null,null,null,null,null,null,null,null,null,null,"Dec",190,206,190,190]
[null,null,null,null,null,null,null,null,null,null,"Annual",{"$f":"AVERAGE(L67:L78)","v":190},{"$f":"MAX(M67:M78)","v":225},{"$f":"AVERAGE(N67:N78)","v":190},{"$f":"MAX(O67:O78)","v":191}]

{"sheet":"TOC","index":17,"n_rows":79,"n_cols":17,"rows_kept":79,"cut":false,"hidden":false,"merged":[[3,16,7,18],[9,16,11,18],[12,16,15,18],[66,9,78,9],[4,1,4,3],[4,4,4,6],[4,9,4,14],[6,9,18,9],[21,9,33,9],[36,9,48,9],[47,0,47,6],[48,0,51,6],[51,9,63,9]]}
[{"$f":"+'Cover Page'!$B$29","v":"Annual Performance Report 2021"},null,null,null,{"$f":"+'Cover Page'!$B$33","v":"SUEZ R&R UK LTD \nSUEZ R&R  Tees Valley – Energy from Waste Facility\n Tees Valley – Energy from Waste Facility"}]
[]
["Monitoring of Total organic carbon emissions",null,null,"Whole Installation",null,null,"See  Notes in Cell Q3",null,null,{"$f":"+A3","v":"Monitoring of Total organic carbon emissions"},null,null,null,"Per Combustion Line",null,null,"Notes:"]
[null,null,null,null,null,null,null,null,null,null,null,null,null,null,null,null,"User to add logic to complete Whole installation, Table A5:G18. From the data in Per Combustion Line, Table J6:O79, subject to No. of lines installed"]
["mg/Nm3","1/2 Hourly Reference Periods",null,null,"Daily Reference Periods"]
[{"$f":"+'Cover Page'!C39","v":2021},"1/2 hourly TOC ELV","Monthly 1/2 hourly mean","Highest 1/2 hourly maximum","Daily TOC ELV","Monthly daily mean","Highest daily maximum",null,null,{"$f":"+A6","v":2021},"mg/Nm3","Monthly 1/2 hourly mean","Monthly 1/2 hourly maximum","Monthly daily mean","Monthly daily maximum"]
["Jan",20,{"$f":"AVERAGE(L7,L22,L37,L52,L67)","v":0.33999999999999997},{"$f":"MAX(M7,M22,M37,M52,M67)","v":14.6},10,{"$f":"AVERAGE(N7,N22,N37,N52,N67)","v":0.33999999999999997},{"$f":"MAX(O7,O22,O37,O52,O67)","v":0.9},null,null,"A1","Jan",0.4,5.5,0.4,0.5]
["Feb",20,{"$f":"AVERAGE(L8,L23,L38,L53,L68)","v":0.38},{"$f":"MAX(M8,M23,M38,M53,M68)","v":14},10,{"$f":"AVERAGE(N8,N23,N38,N53,N68)","v":0.38},{"$f":"MAX(O8,O23,O38,O53,O68)","v":4.0999999999999996},null,null,null,"Feb",0.6,14,0.6,2.2000000000000002]
["Mar",20,0.42000000000000004,70,10,0.42000000000000004,7,null,null,null,"Mar",0.4,6.1,0.4,0.7,null,"Whole Installation table A5:G18:"]
["Apr",20,0.38,26,10,0.38,2.2000000000000002,null,null,null,"Apr",0.5,26,0.5,1.9,null,"Mean: for 1/2 hourly and daily periods calculate mean of values across all operational combustion lines for the month"]
["May",20,0.34,70,10,0.36,1.1000000000000001,null,null,null,"May",0.4,21,0.4,1.1000000000000001]
["Jun",20,0.5,23,10,0.5,1.9,null,null,null,"Jun",0.6,23,0.6,1.9]
["Jul",20,0.43999999999999995,37.200000000000003,10,0.43999999999999995,2.9,null,null,null,"Jul",0.6,37.200000000000003,0.6,2.1,null,"Maximum: for 1/2 hourly and daily periods use the highest value across all operational combustion lines for the month"]
["Aug",20,0.36,22.8,10,0.36,2.1,null,null,null,"Aug",0.4,16.5,0.4,0.8]
["Sep",20,0.3,48.8,10,0.3,1.8,null,null,null,"Sep",0.4,5.9,0.4,0.8]
["Oct",20,0.44000000000000006,15.6,10,0.44000000000000006,6.3,null,null,null,"Oct",0.6,2.7,0.6,0.8]
["Nov",20,0.36,14,10,0.36,2.5,null,null,null,"Nov",0.1,3.7,0.1,0.3]
["Dec",20,0.24,9.5,10,0.24,0.9,null,null,null,"Dec",0.1,4,0.1,0.3]
[null,null,null,null,null,null,null,null,null,null,"Annual",{"$f":"AVERAGE(L7:L18)","v":0.42499999999999988},{"$f":"MAX(M7:M18)","v":37.200000000000003},{"$f":"AVERAGE(N7:N18)","v":0.42499999999999988},{"$f":"MAX(O7:O18)","v":2.2000000000000002}]
[]
[null,null,null,null,null,null,null,null,null,{"$f":"+A6","v":2021},"mg/Nm3","Monthly 1/2 hourly mean","Monthly 1/2 hourly maximum","Monthly daily mean","Monthly daily maximum"]
[null,null,null,null,null,null,null,null,null,"A2","Jan",0.6,8,0.6,0.9]
[null,null,null,null,null,null,null,null,null,null,"Feb",0.8,11,0.8,4.0999999999999996]
[null,null,null,null,null,null,null,null,null,null,"Mar",1,70,1,7]
[null,null,null,null,null,null,null,null,null,null,"Apr",0.8,8.3000000000000007,0.8,2.2000000000000002]
[null,null,null,null,null,null,null,null,null,null,"May",0.8,70,0.9,0.9]
[null,null,null,null,null,null,null,null,null,null,"Jun",0.7,10.1,0.7,1.3]
[null,null,null,null,null,null,null,null,null,null,"Jul",0.8,19,0.8,2.9]
[null,"Annual Performance Report 2021",null,null,null,null,null,null,null,null,"Aug",0.7,22.8,0.7,2.1]
[null,null,null,null,null,null,null,null,null,null,"Sep",0.6,48.8,0.6,1.8]
[null,null,null,null,null,null,null,null,null,null,"Oct",1.1000000000000001,12,1.1000000000000001,6.3]
[null,null,null,null,null,null,null,null,null,null,"Nov",1.1000000000000001,9,1.1000000000000001,2.5]
[null,null,null,null,null,null,null,null,null,null,"Dec",0.5,3.1,0.5,0.9]
[null,null,null,null,null,null,null,null,null,null,"Annual",{"$f":"AVERAGE(L22:L33)","v":0.79166666666666663},{"$f":"MAX(M22:M33)","v":70},{"$f":"AVERAGE(N22:N33)","v":0.79999999999999993},{"$f":"MAX(O22:O33)","v":7}]
[]
[null,null,null,null,null,null,null,null,null,{"$f":"+A6","v":2021},"mg/Nm3","Monthly 1/2 hourly mean","Monthly 1/2 hourly maximum","Monthly daily mean","Monthly daily maximum"]
[null,null,null,null,null,null,null,null,null,"A3","Jan",0.5,14.6,0.5,0.9]
[null,null,null,null,null,null,null,null,null,null,"Feb",0.3,2.7,0.3,1.1000000000000001]
[null,null,2021,null,null,null,null,null,null,null,"Mar",0.5,69.8,0.5,1]
[null,null,null,null,null,null,null,null,null,null,"Apr",0.3,14.1,0.3,0.7]
[null,null,null,null,null,null,null,null,null,null,"May",0.2,2.5,0.2,0.4]
[null,null,null,null,null,null,null,null,null,null,"Jun",1,7.9,1,1.1000000000000001]
[null,null,null,null,null,null,null,null,null,null,"Jul",0.4,6.1,0.4,0.7]
[null,null,null,null,null,null,null,null,null,null,"Aug",0.3,7.4,0.3,0.6]
[null,null,null,null,null,null,null,null,null,null,"Sep",0.2,22.7,0.2,0.6]
[null,null,null,null,null,null,null,null,null,null,"Oct",0.2,1.8,0.2,0.4]
[null,null,null,null,null,null,null,null,null,null,"Nov",0.2,7,0.2,0.3]
["Comments :",null,null,null,null,null,null,null,null,null,"Dec",0.2,9.5,0.2,0.5]
[null,null,null,null,null,null,null,null,null,null,"Annual",{"$f":"AVERAGE(L37:L48)","v":0.35833333333333334},{"$f":"MAX(M37:M48)","v":69.8},{"$f":"AVERAGE(N37:N48)","v":0.35833333333333334},{"$f":"MAX(O37:O48)","v":1.1000000000000001}]
[]
[null,null,null,null,null,null,null,null,null,{"$f":"+A6","v":2021},"mg/Nm3","Monthly 1/2 hourly mean","Monthly 1/2 hourly maximum","Monthly daily mean","Monthly daily maximum"]
[null,null,null,null,null,null,null,null,null,"A4","Jan",0,6.3,0,0.1]
[null,null,null,null,null,null,null,null,null,null,"Feb",0,1.1000000000000001,0,0.1]
[null,null,null,null,null,null,null,null,null,null,"Mar",0,1,0,0.1]
[null,null,null,null,null,null,null,null,null,null,"Apr",0.1,0.9,0.1,0.2]
[null,null,null,null,null,null,null,null,null,null,"May",0.1,0.8,0.1,0.1]
[null,null,null,null,null,null,null,null,null,null,"Jun",0,0.8,0,0.1]
[null,null,null,null,null,null,null,null,null,null,"Jul",0.2,1,0.2,0.3]
[null,null,null,null,null,null,null,null,null,null,"Aug",0.2,6.6,0.2,0.3]
[null,null,null,null,null,null,null,null,null,null,"Sep",0.1,9.3000000000000007,0.1,0.3]
[null,null,null,null,null,null,null,null,null,null,"Oct",0.1,15.6,0.1,0.8]
[null,null,null,null,null,null,null,null,null,null,"Nov",0.2,14,0.2,0.5]
[null,null,null,null,null,null,null,null,null,null,"Dec",0.2,2.1,0.2,0.3]
[null,null,null,null,null,null,null,null,null,null,"Annual",{"$f":"AVERAGE(L52:L63)","v":9.9999999999999992E-2},{"$f":"MAX(M52:M63)","v":15.6},{"$f":"AVERAGE(N52:N63)","v":9.9999999999999992E-2},{"$f":"MAX(O52:O63)","v":0.8}]
[]
[null,null,null,null,null,null,null,null,null,{"$f":"+A6","v":2021},"mg/Nm3","Monthly 1/2 hourly mean","Monthly 1/2 hourly maximum","Monthly daily mean","Monthly daily maximum"]
[null,null,null,null,null,null,null,null,null,"A5","Jan",0.2,0.2,0.2,0.2]
[null,null,null,null,null,null,null,null,null,null,"Feb",0.2,2,0.2,0.3]
[null,null,null,null,null,null,null,null,null,null,"Mar",0.2,15,0.2,0.5]
[null,null,null,null,null,null,null,null,null,null,"Apr",0.2,8.1,0.2,0.4]
[null,null,null,null,null,null,null,null,null,null,"May",0.2,0.8,0.2,0.2]
[null,null,null,null,null,null,null,null,null,null,"Jun",0.2,1.2,0.2,0.2]
[null,null,null,null,null,null,null,null,null,null,"Jul",0.2,1.8,0.2,0.3]
[null,null,null,null,null,null,null,null,null,null,"Aug",0.2,1.9,0.2,0.3]
[null,null,null,null,null,null,null,null,null,null,"Sep",0.2,0.9,0.2,0.2]
[null,null,null,null,null,null,null,null,null,null,"Oct",0.2,0.7,0.2,0.2]
[null,null,null,null,null,null,null,null,null,null,"Nov",0.2,0.9,0.2,0.2]
[null,null,null,null,null,null,null,null,null,null,"Dec",0.2,0.7,0.2,0.2]
[null,null,null,null,null,null,null,null,null,null,"Annual",{"$f":"AVERAGE(L67:L78)","v":0.19999999999999998},{"$f":"MAX(M67:M78)","v":15},{"$f":"AVERAGE(N67:N78)","v":0.19999999999999998},{"$f":"MAX(O67:O78)","v":0.5}]

{"sheet":"Particulates","index":18,"n_rows":79,"n_cols":17,"rows_kept":79,"cut":false,"hidden":false,"merged":[[3,16,7,18],[9,16,11,18],[12,16,15,18],[66,9,78,9],[4,1,4,3],[4,4,4,6],[4,9,4,14],[6,9,18,9],[21,9,33,9],[36,9,48,9],[47,0,47,6],[48,0,51,6],[51,9,63,9]]}
[{"$f":"+'Cover Page'!$B$29","v":"Annual Performance Report 2021"},null,null,null,{"$f":"+'Cover Page'!$B$33","v":"SUEZ R&R UK LTD \nSUEZ R&R  Tees Valley – Energy from Waste Facility\n Tees Valley – Energy from Waste Facility"}]
[]
["Monitoring of Particulate matter emissions",null,null,"Whole Installation",null,null,"See  Notes in Cell Q3",null,null,{"$f":"+A3","v":"Monitoring of Particulate matter emissions"},null,null,null,"Per Combustion Line",null,null,"Notes:"]
[null,null,null,null,null,null,null,null,null,null,null,null,null,null,null,null,"User to add logic to complete Whole installation, Table A5:G18. From the data in Per Combustion Line, Table J6:O79, subject to No. of lines installed"]
["mg/Nm3","1/2 Hourly Reference Periods",null,null,"Daily Reference Periods"]
[{"$f":"+'Cover Page'!C39","v":2021},"1/2 hourly PM ELV","Monthly 1/2 hourly mean","Highest 1/2 hourly maximum","Daily PM ELV","Monthly daily mean","Highest daily maximum",null,null,{"$f":"+A6","v":2021},"mg/Nm3","Monthly 1/2 hourly mean","Monthly 1/2 hourly maximum","Monthly daily mean","Monthly daily maximum"]
["Jan",30,{"$f":"AVERAGE(L7,L22,L37,L52,L67)","v":0.9},{"$f":"MAX(M7,M22,M37,M52,M67)","v":4.5},10,{"$f":"AVERAGE(N7,N22,N37,N52,N67)","v":0.9},{"$f":"MAX(O7,O22,O37,O52,O67)","v":2.1},null,null,"A1","Jan",1.6,3.2,1.6,2.1]
["Feb",30,{"$f":"AVERAGE(L8,L23,L38,L53,L68)","v":1},{"$f":"MAX(M8,M23,M38,M53,M68)","v":28.4},10,{"$f":"AVERAGE(N8,N23,N38,N53,N68)","v":1},{"$f":"MAX(O8,O23,O38,O53,O68)","v":2.2999999999999998},null,null,null,"Feb",1.5,10.6,1.5,1.8]
["Mar",30,1.2200000000000002,15.3,10,1.2200000000000002,6,null,null,null,"Mar",1.7,6,1.7,1.9,null,"Whole Installation table A5:G18:"]
["Apr",30,1.2000000000000002,18,10,1.2000000000000002,3.1,null,null,null,"Apr",1.7,3,1.7,2,null,"Mean: for 1/2 hourly and daily periods calculate mean of values across all operational combustion lines for the month"]
["May",30,1.22,14.8,10,1.22,6.1,null,null,null,"May",1.5,4.0999999999999996,1.5,1.9]
["Jun",30,1.1399999999999999,6.4,10,1.1399999999999999,3.1,null,null,null,"Jun",1.2,2.5,1.2,1.4]
["Jul",30,1.1320000000000001,7.4,10,1.1800000000000002,2.9,null,null,null,"Jul",1.3,2.1,1.3,1.5,null,"Maximum: for 1/2 hourly and daily periods use the highest value across all operational combustion lines for the month"]
["Aug",30,1.02,4,10,1.02,3.2,null,null,null,"Aug",1.4,2.2999999999999998,1.4,1.7]
["Sep",30,1.22,13.2,10,1.22,5.6,null,null,null,"Sep",1.5,3.2,1.5,1.7]
["Oct",30,1.1000000000000001,8.9,10,1.1000000000000001,3.4,null,null,null,"Oct",1.6,2.9,1.6,1.8]
["Nov",30,0.64,2.8,10,0.64,1.8,null,null,null,"Nov",0.8,2.8,0.8,1]
["Dec",30,0.84000000000000008,10.6,10,0.84000000000000008,9,null,null,null,"Dec",0.5,10.6,0.5,9]
[null,null,null,null,null,null,null,null,null,null,"Annual",{"$f":"AVERAGE(L7:L18)","v":1.3583333333333334},{"$f":"MAX(M7:M18)","v":10.6},{"$f":"AVERAGE(N7:N18)","v":1.3583333333333334},{"$f":"MAX(O7:O18)","v":9}]
[]
[null,null,null,null,null,null,null,null,null,{"$f":"+A6","v":2021},"mg/Nm3","Monthly 1/2 hourly mean","Monthly 1/2 hourly maximum","Monthly daily mean","Monthly daily maximum"]
[null,null,null,null,null,null,null,null,null,"A2","Jan",1.2,4.5,1.2,1.6]
[null,null,null,null,null,null,null,null,null,null,"Feb",1.3,4.8,1.3,1.9]
[null,null,null,null,null,null,null,null,null,null,"Mar",1.3,6,1.3,1.6]
[null,null,null,null,null,null,null,null,null,null,"Apr",1.2,3,1.2,1.7]
[null,null,null,null,null,null,null,null,null,null,"May",1.3,3.6,1.3,1.9]
[null,null,null,null,null,null,null,null,null,null,"Jun",1.2,3.2,1.2,1.5]
[null,null,null,null,null,null,null,null,null,null,"Jul",1,3.1,1,1.5]
[null,"Annual Performance Report 2021",null,null,null,null,null,null,null,null,"Aug",0.9,4,0.9,1]
[null,null,null,null,null,null,null,null,null,null,"Sep",0.9,4.0999999999999996,0.9,1.3]
[null,null,null,null,null,null,null,null,null,null,"Oct",1,2.9,1,1.2]
[null,null,null,null,null,null,null,null,null,null,"Nov",0.1,1.4,0.1,0.2]
[null,null,null,null,null,null,null,null,null,null,"Dec",0.1,0.6,0.1,0.2]
[null,null,null,null,null,null,null,null,null,null,"Annual",{"$f":"AVERAGE(L22:L33)","v":0.95833333333333337},{"$f":"MAX(M22:M33)","v":6},{"$f":"AVERAGE(N22:N33)","v":0.95833333333333337},{"$f":"MAX(O22:O33)","v":1.9}]
[]
[null,null,null,null,null,null,null,null,null,{"$f":"+A6","v":2021},"mg/Nm3","Monthly 1/2 hourly mean","Monthly 1/2 hourly maximum","Monthly daily mean","Monthly daily maximum"]
[null,null,null,null,null,null,null,null,null,"A3","Jan",0.2,1.5,0.2,0.5]
[null,null,null,null,null,null,null,null,null,null,"Feb",0.7,28.4,0.7,2.2999999999999998]
[null,null,2021,null,null,null,null,null,null,null,"Mar",1.7,15.3,1.7,6]
[null,null,null,null,null,null,null,null,null,null,"Apr",1.8,18,1.8,3.1]
[null,null,null,null,null,null,null,null,null,null,"May",2.2000000000000002,14.8,2.2000000000000002,6.1]
[null,null,null,null,null,null,null,null,null,null,"Jun",2.4,6.4,2.4,3.1]
[null,null,null,null,null,null,null,null,null,null,"Jul",1.36,7.4,1.6,2.9]
[null,null,null,null,null,null,null,null,null,null,"Aug",1.4,3.8,1.4,3.2]
[null,null,null,null,null,null,null,null,null,null,"Sep",1.7,13,1.7,5.6]
[null,null,null,null,null,null,null,null,null,null,"Oct",1.4,8.9,1.4,3.4]
[null,null,null,null,null,null,null,null,null,null,"Nov",0.7,2.1,0.7,1.8]
["Comments :",null,null,null,null,null,null,null,null,null,"Dec",1.8,7.2,1.8,4.8]
[null,null,null,null,null,null,null,null,null,null,"Annual",{"$f":"AVERAGE(L37:L48)","v":1.4466666666666665},{"$f":"MAX(M37:M48)","v":28.4},{"$f":"AVERAGE(N37:N48)","v":1.4666666666666666},{"$f":"MAX(O37:O48)","v":6.1}]
[]
[null,null,null,null,null,null,null,null,null,{"$f":"+A6","v":2021},"mg/Nm3","Monthly 1/2 hourly mean","Monthly 1/2 hourly maximum","Monthly daily mean","Monthly daily maximum"]
[null,null,null,null,null,null,null,null,null,"A4","Jan",0.9,1.2,0.9,1]
[null,null,null,null,null,null,null,null,null,null,"Feb",1,1.3,1,1.1000000000000001]
[null,null,null,null,null,null,null,null,null,null,"Mar",1,1.9,1,1.1000000000000001]
[null,null,null,null,null,null,null,null,null,null,"Apr",0.9,2.2000000000000002,0.9,1]
[null,null,null,null,null,null,null,null,null,null,"May",0.6,11.5,0.6,2.4]
[null,null,null,null,null,null,null,null,null,null,"Jun",0.3,0.5,0.3,0.4]
[null,null,null,null,null,null,null,null,null,null,"Jul",1.5,4.0999999999999996,1.5,2.1]
[null,null,null,null,null,null,null,null,null,null,"Aug",0.7,1.4,0.7,1]
[null,null,null,null,null,null,null,null,null,null,"Sep",1,13.2,1,1.6]
[null,null,null,null,null,null,null,null,null,null,"Oct",0.3,6,0.3,0.4]
[null,null,null,null,null,null,null,null,null,null,"Nov",0.4,0.7,0.4,0.5]
[null,null,null,null,null,null,null,null,null,null,"Dec",0.5,0.9,0.5,0.7]
[null,null,null,null,null,null,null,null,null,null,"Annual",{"$f":"AVERAGE(L52:L63)","v":0.7583333333333333},{"$f":"MAX(M52:M63)","v":13.2},{"$f":"AVERAGE(N52:N63)","v":0.7583333333333333},{"$f":"MAX(O52:O63)","v":2.4}]
[]
[null,null,null,null,null,null,null,null,null,{"$f":"+A6","v":2021},"mg/Nm3","Monthly 1/2 hourly mean","Monthly 1/2 hourly maximum","Monthly daily mean","Monthly daily maximum"]
[null,null,null,null,null,null,null,null,null,"A5","Jan",0.6,3.4,0.6,1.6]
[null,null,null,null,null,null,null,null,null,null,"Feb",0.5,0.8,0.5,0.6]
[null,null,null,null,null,null,null,null,null,null,"Mar",0.4,0.8,0.4,0.5]
[null,null,null,null,null,null,null,null,null,null,"Apr",0.4,0.6,0.4,0.5]
[null,null,null,null,null,null,null,null,null,null,"May",0.5,0.9,0.5,0.6]
[null,null,null,null,null,null,null,null,null,null,"Jun",0.6,0.8,0.6,0.6]
[null,null,null,null,null,null,null,null,null,null,"Jul",0.5,2.2999999999999998,0.5,0.6]
[null,null,null,null,null,null,null,null,null,null,"Aug",0.7,1.2,0.7,0.8]
[null,null,null,null,null,null,null,null,null,null,"Sep",1,1.5,1,1.1000000000000001]
[null,null,null,null,null,null,null,null,null,null,"Oct",1.2,1.8,1.2,1.3]
[null,null,null,null,null,null,null,null,null,null,"Nov",1.2,1.8,1.2,1.5]
[null,null,null,null,null,null,null,null,null,null,"Dec",1.3,2.1,1.3,1.7]
[null,null,null,null,null,null,null,null,null,null,"Annual",{"$f":"AVERAGE(L67:L78)","v":0.7416666666666667},{"$f":"MAX(M67:M78)","v":3.4},{"$f":"AVERAGE(N67:N78)","v":0.7416666666666667},{"$f":"MAX(O67:O78)","v":1.7}]

{"sheet":"CO 95% 10 min","index":19,"n_rows":79,"n_cols":19,"rows_kept":79,"cut":false,"hidden":false,"merged":[[3,18,7,20],[9,18,11,20],[12,18,15,20],[66,10,78,10],[4,1,4,4],[4,5,4,7],[4,10,4,16],[6,10,18,10],[21,10,33,10],[36,10,48,10],[47,0,47,7],[48,0,51,7],[51,10,63,10]]}
[{"$f":"+'Cover Page'!$B$29","v":"Annual Performance Report 2021"},null,null,null,{"$f":"+'Cover Page'!$B$33","v":"SUEZ R&R UK LTD \nSUEZ R&R  Tees Valley – Energy from Waste Facility\n Tees Valley – Energy from Waste Facility"}]
[]
["Monitoring of Carbon Monoxide (10-minute avg)",null,null,null,"Whole Installation",null,null,"See  Notes in Cell S3",null,{"$f":"+A3","v":"Monitoring of Carbon Monoxide (10-minute avg)"},null,null,null,null,"Per Combustion Line",null,"Notes:",null,"Notes:"]
[null,null,null,null,null,null,null,null,null,null,null,null,null,null,null,null,null,null,"User to add logic to complete Whole installation, Table A5:H18. From the data in Per Combustion Line, Table K6:Q79, subject to No. of lines installed"]
["mg/Nm3","10-minute Reference Periods",null,null,null,"Daily Reference Periods"]
[{"$f":"+'Cover Page'!C39","v":2021},"95%ile 10-min avg CO ELV","95%ile 10-min avg maximum","Monthly CO 10-min avg mean","10-min avg maximum","Daily CO ELV","Monthly daily mean","Highest daily maximum",null,null,{"$f":"+A6","v":2021},"mg/Nm3","95%ile 10-min avg maximum","Monthly CO 10-min avg mean","10-min avg maximum","Monthly daily mean","Monthly daily maximum"]
["Jan",150,{"$f":"AVERAGE(M7,M22,M37,M52,M67)","v":16.919999999999998},{"$f":"AVERAGE(N7,N22,N37,N52,N67)","v":4.7999999999999989},{"$f":"MAX(O7,O22,O37,O52,O67)","v":578},50,{"$f":"AVERAGE(P7,P22,P37,P52,P67)","v":4.7999999999999989},{"$f":"MAX(Q7,Q22,Q37,Q52,Q67)","v":10.7},null,null,"A1","Jan",30,3.9,325,3.9,9.4]
["Feb",{"$f":"+B7","v":150},{"$f":"AVERAGE(M8,M23,M38,M53,M68)","v":20.52},{"$f":"AVERAGE(N8,N23,N38,N53,N68)","v":6.0600000000000005},{"$f":"MAX(O8,O23,O38,O53,O68)","v":475.9},{"$f":"+F7","v":50},{"$f":"AVERAGE(P8,P23,P38,P53,P68)","v":6.0600000000000005},{"$f":"MAX(Q8,Q23,Q38,Q53,Q68)","v":11.3},null,null,null,"Feb",47,7.9,391,7.9,11.3]
["Mar",{"$f":"+B8","v":150},17.419999999999998,7.5399999999999991,2040,{"$f":"+F8","v":50},7.5399999999999991,33.200000000000003,null,null,null,"Mar",11.4,4.4000000000000004,380,4.4000000000000004,8.3000000000000007,null,"Whole Installation table A5:H18:"]
["Apr",150,15,5.5600000000000005,1656,50,5.5600000000000005,42,null,null,null,"Apr",33,3.9,425,3.9,17.8,null,"Mean: for 10-min and daily periods use average of all operational combustion lines."]
["May",150,8.0599999999999987,5.64,2760,50,5.64,22.5,null,null,null,"May",7.4,3.8,450,3.8,14.3]
["Jun",150,7.5,4.92,536,50,4.92,14,null,null,null,"Jun",5.9,3.6,450,3.6,14]
["Jul",150,9.7200000000000006,4.76,456,50,4.76,14.7,null,null,null,"Jul",5,3.1,450,3.1,10.7,null,"Maximum: for 10-min and daily periods use the highest of all operational combustion lines in any month."]
["Aug",150,8.58,4.6399999999999997,990,50,4.6399999999999997,15.2,null,null,null,"Aug",9,4.2,450,4.2,12.3]
["Sep",150,9.86,5.5200000000000005,915,50,5.5200000000000005,15.3,null,null,null,"Sep",16.600000000000001,6.2,209,6.2,14]
["Oct",150,21.360000000000003,7.3400000000000007,450,50,7.3400000000000007,32.200000000000003,null,null,null,"Oct",22,6.5,282,6.5,12.8]
["Nov",150,7.1599999999999993,5.22,1013,50,5.22,18.899999999999999,null,null,null,"Nov",4.2,2.9,3.26,2.9,8.6999999999999993]
["Dec",150,6.22,4.92,514.70000000000005,50,4.92,17,null,null,null,"Dec",4.7,3,351,3,9.1999999999999993]
[null,null,null,null,null,null,null,null,null,null,null,"Annual",{"$f":"AVERAGE(M7:M18)","v":16.349999999999998},null,{"$f":"MAX(O7:O18)","v":450},{"$f":"AVERAGE(P7:P18)","v":4.45},{"$f":"MAX(Q7:Q18)","v":17.8}]
[]
[null,null,null,null,null,null,null,null,null,null,{"$f":"+A6","v":2021},"mg/Nm3","95%ile 10-min avg maximum","Monthly CO 10-min avg mean","10-min avg maximum","Monthly daily mean","Monthly daily maximum"]
[null,null,null,null,null,null,null,null,null,null,"A2","Jan",5.6,1.4,247,1.4,3.5]
[null,null,null,null,null,null,null,null,null,null,null,"Feb",16,4.3,210,4.3,10.6]
[null,null,null,null,null,null,null,null,null,null,null,"Mar",33.5,13,450,13,33.200000000000003]
[null,null,null,null,null,null,null,null,null,null,null,"Apr",13,6.5,450,6.5,13.1]
[null,null,null,null,null,null,null,null,null,null,null,"May",11.7,6.9,450,6.9,22.5]
[null,null,null,null,null,null,null,null,null,null,null,"Jun",10.199999999999999,5.5,275,5.5,10.4]
[null,null,null,null,null,null,null,null,null,null,null,"Jul",11.1,5.8,343,5.8,14.7]
[null,"Annual Performance Report 2021",null,null,null,null,null,null,null,null,null,"Aug",18.399999999999999,7.1,348,7.1,15.2]
[null,null,null,null,null,null,null,null,null,null,null,"Sep",18.2,8.1999999999999993,450,8.1999999999999993,15.3]
[null,null,null,null,null,null,null,null,null,null,null,"Oct",67.400000000000006,16.2,450,16.2,27]
[null,null,null,null,null,null,null,null,null,null,null,"Nov",14.4,7.8,226,7.8,18.899999999999999]
[null,null,null,null,null,null,null,null,null,null,null,"Dec",6.8,4.8,450,4.8,17]
[null,null,null,null,null,null,null,null,null,null,null,"Annual",{"$f":"AVERAGE(M22:M33)","v":18.858333333333334},null,{"$f":"MAX(O22:O33)","v":450},{"$f":"AVERAGE(P22:P33)","v":7.291666666666667},{"$f":"MAX(Q22:Q33)","v":33.200000000000003}]
[]
[null,null,null,null,null,null,null,null,null,null,{"$f":"+A6","v":2021},"mg/Nm3","95%ile 10-min avg maximum","Monthly CO 10-min avg mean","10-min avg maximum","Monthly daily mean","Monthly daily maximum"]
[null,null,null,null,null,null,null,null,null,null,"A3","Jan",20.399999999999999,3.9,73.5,3.9,7]
[null,null,null,null,null,null,null,null,null,null,null,"Feb",21.7,4.2,475.9,4.2,5.3]
[null,null,2021,null,null,null,null,null,null,null,null,"Mar",14.5,7.4,2040,7.4,19.399999999999999]
[null,null," ",null,null,null,null,null,null,null,null,"Apr",18.2,5.4,1212,5.4,42]
[null,null,null,null,null,null,null,null,null,null,null,"May",10.6,5,813,5,6]
[null,null,null,null,null,null,null,null,null,null,null,"Jun",11.7,5.6,536,5.6,5.4]
[null,null,null,null,null,null,null,null,null,null,null,"Jul",22.5,2.2000000000000002,456,2.2000000000000002,8.6999999999999993]
[null,null,null,null,null,null,null,null,null,null,null,"Aug",5.9,1.8,990,1.8,9.8000000000000007]
[null,null,null,null,null,null,null,null,null,null,null,"Sep",4.0999999999999996,2.2999999999999998,915,2.2999999999999998,13.3]
[null,null,null,null,null,null,null,null,null,null,null,"Oct",6.5,1.9,101,1.9,3.7]
[null,null,null,null,null,null,null,null,null,null,null,"Nov",5.4,2.6,202,2.6,4.4000000000000004]
["Comments :",null,null,null,null,null,null,null,null,null,null,"Dec",6,2.7,514.70000000000005,2.7,5.4]
["Environment Agency explanatory note: The 10-minute average ELV is based on the “95th percentile”. In this case this means that 95% of the 10 minute averages in the relevant 24-hour period (i.e. 137) must be below 150 mg/Nm3, and 5% (i.e. 7) are allowed to be any value above 150 mg/Nm3. Whilst we expect operators to minimise CO emissions at all times, it is perfectly acceptable for the value of the maximum 10-minute average to be above 150 mg/Nm3, provided the 95th percentile ELV has been met for that period. ",null,null,null,null,null,null,null,null,null,null,"Annual",{"$f":"AVERAGE(M37:M48)","v":12.291666666666666},null,{"$f":"MAX(O37:O48)","v":2040},{"$f":"AVERAGE(P37:P48)","v":3.75},{"$f":"MAX(Q37:Q48)","v":42}]
[]
[null,null,null,null,null,null,null,null,null,null,{"$f":"+A6","v":2021},"mg/Nm3","95%ile 10-min avg maximum","Monthly CO 10-min avg mean","10-min avg maximum","Monthly daily mean","Monthly daily maximum"]
[null,null,null,null,null,null,null,null,null,null,"A4","Jan",10.7,7.6,408,7.6,10.7]
[null,null,null,null,null,null,null,null,null,null,null,"Feb",9.1,7.1,110,7.1,9.6]
[null,null,null,null,null,null,null,null,null,null,null,"Mar",8.4,6.4,94,6.4,8.4]
[null,null,null,null,null,null,null,null,null,null,null,"Apr",5.6,6,261.8,6,8.6999999999999993]
[null,null,null,null,null,null,null,null,null,null,null,"May",5.3,5.5,40.6,5.5,7.2]
[null,null,null,null,null,null,null,null,null,null,null,"Jun",4.8,4.9000000000000004,14.6,4.9000000000000004,5.7]
[null,null,null,null,null,null,null,null,null,null,null,"Jul",4.9000000000000004,6.9,19.7,6.9,8.1]
[null,null,null,null,null,null,null,null,null,null,null,"Aug",4.7,4.9000000000000004,273,4.9000000000000004,7.2]
[null,null,null,null,null,null,null,null,null,null,null,"Sep",5.0999999999999996,5.4,175,5.4,6.7]
[null,null,null,null,null,null,null,null,null,null,null,"Oct",4.9000000000000004,5.9,254,5.9,32.200000000000003]
[null,null,null,null,null,null,null,null,null,null,null,"Nov",5.2,5.6,1013,5.6,12]
[null,null,null,null,null,null,null,null,null,null,null,"Dec",6.4,6.6,177,6.6,10.4]
[null,null,null,null,null,null,null,null,null,null,null,"Annual",{"$f":"AVERAGE(M52:M63)","v":6.2583333333333329},null,{"$f":"MAX(O52:O63)","v":1013},{"$f":"AVERAGE(P52:P63)","v":6.0666666666666655},{"$f":"MAX(Q52:Q63)","v":32.200000000000003}]
[]
[null,null,null,null,null,null,null,null,null,null,{"$f":"+A6","v":2021},"mg/Nm3","95%ile 10-min avg maximum","Monthly CO 10-min avg mean","10-min avg maximum","Monthly daily mean","Monthly daily maximum"]
[null,null,null,null,null,null,null,null,null,null,"A5","Jan",17.899999999999999,7.2,578,7.2,9.6999999999999993]
[null,null,null,null,null,null,null,null,null,null,null,"Feb",8.8000000000000007,6.8,329,6.8,9]
[null,null,null,null,null,null,null,null,null,null,null,"Mar",19.3,6.5,1275,6.5,19.3]
[null,null,null,null,null,null,null,null,null,null,null,"Apr",5.2,6,1656,6,19]
[null,null,null,null,null,null,null,null,null,null,null,"May",5.3,7,2760,7,6.9]
[null,null,null,null,null,null,null,null,null,null,null,"Jun",4.9000000000000004,5,62.5,5,6.2]
[null,null,null,null,null,null,null,null,null,null,null,"Jul",5.0999999999999996,5.8,65,5.8,8.6]
[null,null,null,null,null,null,null,null,null,null,null,"Aug",4.9000000000000004,5.2,284,5.2,8.6999999999999993]
[null,null,null,null,null,null,null,null,null,null,null,"Sep",5.3,5.5,81,5.5,6.8]
[null,null,null,null,null,null,null,null,null,null,null,"Oct",6,6.2,25.4,6.2,7.8]
[null,null,null,null,null,null,null,null,null,null,null,"Nov",6.6,7.2,62.2,7.2,13.8]
[null,null,null,null,null,null,null,null,null,null,null,"Dec",7.2,7.5,139,7.5,9.5]
[null,null,null,null,null,null,null,null,null,null,null,"Annual",{"$f":"AVERAGE(M67:M78)","v":8.0416666666666661},null,{"$f":"MAX(O67:O78)","v":2760},{"$f":"AVERAGE(P67:P78)","v":6.3250000000000002},{"$f":"MAX(Q67:Q78)","v":19.3}]

{"sheet":"NH3","index":20,"n_rows":79,"n_cols":17,"rows_kept":79,"cut":false,"hidden":false,"merged":[[3,16,7,18],[9,16,11,18],[12,16,15,18],[66,9,78,9],[4,1,4,3],[4,4,4,6],[4,9,4,14],[6,9,18,9],[21,9,33,9],[36,9,48,9],[47,0,47,6],[48,0,51,6],[51,9,63,9]]}
[{"$f":"+'Cover Page'!$B$29","v":"Annual Performance Report 2021"},null,null,null,{"$f":"+'Cover Page'!$B$33","v":"SUEZ R&R UK LTD \nSUEZ R&R  Tees Valley – Energy from Waste Facility\n Tees Valley – Energy from Waste Facility"}]
[]
["Monitoring of Ammnonia emissions ",null,null,"Whole Installation",null,null,"See  Notes in Cell Q3",null,null,{"$f":"+A3","v":"Monitoring of Ammnonia emissions "},null,null,null,"Per Combustion Line",null,null,"Notes:"]
[null,null,null,null,null,null,null,null,null,null,null,null,null,null,null,null,"User to add logic to complete Whole installation, Table A5:G18. From the data in Per Combustion Line, Table J6:O79, subject to No. of lines installed"]
["mg/Nm3","1/2 Hourly Reference Periods",null,null,"Daily Reference Periods"]
[{"$f":"+'Cover Page'!C39","v":2021},"1/2 hourly NH3 ELV","Monthly 1/2 hourly mean","Highest 1/2 hourly maximum","Daily NH3 ELV","Monthly daily mean","Highest daily maximum",null,null,{"$f":"+A6","v":2021},"mg/Nm3","Monthly 1/2 hourly mean","Monthly 1/2 hourly maximum","Monthly daily mean","Monthly daily maximum"]
["Jan",0,{"$f":"AVERAGE(L7,L22,L37,L52,L67)","v":1.7399999999999998},{"$f":"MAX(M7,M22,M37,M52,M67)","v":50},10,{"$f":"AVERAGE(N7,N22,N37,N52,N67)","v":1.7399999999999998},{"$f":"MAX(O7,O22,O37,O52,O67)","v":34.299999999999997},null,null,"A1","Jan",3,50,3,34.299999999999997]
["Feb",{"$f":"+B7","v":0},{"$f":"AVERAGE(L8,L23,L38,L53,L68)","v":20.57},{"$f":"MAX(M8,M23,M38,M53,M68)","v":67.3},{"$f":"+E7","v":10},{"$f":"AVERAGE(N8,N23,N38,N53,N68)","v":1.5619999999999998},{"$f":"MAX(O8,O23,O38,O53,O68)","v":7.8},null,null,null,"Feb",2.2999999999999998,49.5,2.2999999999999998,7]
["Mar",{"$f":"+B8","v":0},1.9219999999999999,50,{"$f":"+E8","v":10},1.9219999999999999,12.3,null,null,null,"Mar",2.1,44.2,2.1,5.0999999999999996,null,"Whole Installation table A5:G18:"]
["Apr",0,1.716,108,10,1.716,8.1,null,null,null,"Apr",2.9,50,2.9,6.6,null,"Mean: for 1/2 hourly and daily periods calculate mean of values across all operational combustion lines for the month"]
["May",0,2.3439999999999999,50,10,2.3439999999999999,12,null,null,null,"May",4.3,50,4.3,12]
["Jun",0,2.2459999999999996,49,10,2.2459999999999996,12,null,null,null,"Jun",3.3,49,3.3,12]
["Jul",0,3.02,50,10,3.02,23.6,null,null,null,"Jul",6.2,50,6.2,23.6,null,"Maximum: for 1/2 hourly and daily periods use the highest value across all operational combustion lines for the month"]
["Aug",0,3.8,50,10,3.7979999999999996,24,null,null,null,"Aug",6.3,49,6.3,24]
["Sep",0,2.48,57,10,2.48,18,null,null,null,"Sep",4.7,50,4.7,18]
["Oct",0,3.1719999999999997,50,10,3.1920000000000002,19.7,null,null,null,"Oct",4.7,50,4.7,11.6]
["Nov",0,3.0019999999999998,85,10,3.0019999999999998,16.399999999999999,null,null,null,"Nov",8,50,8,16.399999999999999]
["Dec",0,13.540000000000001,76,10,2.056,7.5,null,null,null,"Dec",4,50,4,7.5]
[null,null,null,null,null,null,null,null,null,null,"Annual",{"$f":"AVERAGE(L7:L18)","v":4.3166666666666673},{"$f":"MAX(M7:M18)","v":50},{"$f":"AVERAGE(N7:N18)","v":4.3166666666666673},{"$f":"MAX(O7:O18)","v":34.299999999999997}]
[]
[null,null,null,null,null,null,null,null,null,{"$f":"+A6","v":2021},"mg/Nm3","Monthly 1/2 hourly mean","Monthly 1/2 hourly maximum","Monthly daily mean","Monthly daily maximum"]
[null,null,null,null,null,null,null,null,null,"A2","Jan",2.6,50,2.6,6.5]
[null,null,null,null,null,null,null,null,null,null,"Feb",2.5,38,2.5,7.8]
[null,null,null,null,null,null,null,null,null,null,"Mar",3.5,50,3.5,8.1999999999999993]
[null,null,null,null,null,null,null,null,null,null,"Apr",2.4,43,2.4,4.4000000000000004]
[null,null,null,null,null,null,null,null,null,null,"May",2.8,42,2.8,7.1]
[null,null,null,null,null,null,null,null,null,null,"Jun",2.2999999999999998,48,2.2999999999999998,6.3]
[null,null,null,null,null,null,null,null,null,null,"Jul",4.5999999999999996,50,4.5999999999999996,13.4]
[null,"Annual Performance Report 2021",null,null,null,null,null,null,null,null,"Aug",6.1,50,6.1,16.2]
[null,null,null,null,null,null,null,null,null,null,"Sep",3.3,50,3.3,9.3000000000000007]
[null,null,null,null,null,null,null,null,null,null,"Oct",7,50,7,19.7]
[null,null,null,null,null,null,null,null,null,null,"Nov",2.9,29,2.9,6.7]
[null,null,null,null,null,null,null,null,null,null,"Dec",2.2000000000000002,28,2.2000000000000002,4.3]
[null,null,null,null,null,null,null,null,null,null,"Annual",{"$f":"AVERAGE(L22:L33)","v":3.5166666666666675},{"$f":"MAX(M22:M33)","v":50},{"$f":"AVERAGE(N22:N33)","v":3.5166666666666675},{"$f":"MAX(O22:O33)","v":19.7}]
[]
[null,null,null,null,null,null,null,null,null,{"$f":"+A6","v":2021},"mg/Nm3","Monthly 1/2 hourly mean","Monthly 1/2 hourly maximum","Monthly daily mean","Monthly daily maximum"]
[null,null,null,null,null,null,null,null,null,"A3","Jan",1.6,43,1.6,3.6]
[null,null,null,null,null,null,null,null,null,null,"Feb",1.4,67.3,1.4,2.4]
[null,null,2021,null,null,null,null,null,null,null,"Mar",2.2999999999999998,28.3,2.2999999999999998,12.3]
[null,null,null,null,null,null,null,null,null,null,"Apr",1.8,108,1.8,8.1]
[null,null,null,null,null,null,null,null,null,null,"May",2.2000000000000002,39,2.2000000000000002,3.1]
[null,null,null,null,null,null,null,null,null,null,"Jun",2.6,9.3000000000000007,2.6,3.2]
[null,null,null,null,null,null,null,null,null,null,"Jul",1.7,20.5,1.7,2.7]
[null,null,null,null,null,null,null,null,null,null,"Aug",2.5,10.199999999999999,2.5,5]
[null,null,null,null,null,null,null,null,null,null,"Sep",2.2999999999999998,57,2.2999999999999998,4.2]
[null,null,null,null,null,null,null,null,null,null,"Oct",2.2000000000000002,15.3,2.2999999999999998,3.5]
[null,null,null,null,null,null,null,null,null,null,"Nov",2.2999999999999998,85,2.2999999999999998,6.4]
["Comments :",null,null,null,null,null,null,null,null,null,"Dec",2.1,76,2.1,4.3]
["An indicated ELV value of zero in the table above means that no ammonia limit is set in the permit.  ",null,null,null,null,null,null,null,null,null,"Annual",{"$f":"AVERAGE(L37:L48)","v":2.0833333333333335},{"$f":"MAX(M37:M48)","v":108},{"$f":"AVERAGE(N37:N48)","v":2.0916666666666672},{"$f":"MAX(O37:O48)","v":12.3}]
[]
[null,null,null,null,null,null,null,null,null,{"$f":"+A6","v":2021},"mg/Nm3","Monthly 1/2 hourly mean","Monthly 1/2 hourly maximum","Monthly daily mean","Monthly daily maximum"]
[null,null,null,null,null,null,null,null,null,"A4","Jan",0.4,4.47,0.4,1]
[null,null,null,null,null,null,null,null,null,null,"Feb",0.65,8,0.65,1.73]
[null,null,null,null,null,null,null,null,null,null,"Mar",0.41,15.6,0.41,1.39]
[null,null,null,null,null,null,null,null,null,null,"Apr",0.12,3.91,0.12,0.49]
[null,null,null,null,null,null,null,null,null,null,"May",0.37,6.56,0.37,1.32]
[null,null,null,null,null,null,null,null,null,null,"Jun",0.28999999999999998,8.4499999999999993,0.28999999999999998,1.26]
[null,null,null,null,null,null,null,null,null,null,"Jul",1,6.73,1,4.6100000000000003]
[null,null,null,null,null,null,null,null,null,null,"Aug",1.0900000000000001,9.65,1.0900000000000001,5.0199999999999996]
[null,null,null,null,null,null,null,null,null,null,"Sep",0.2,4.3,0.2,0.9]
[null,null,null,null,null,null,null,null,null,null,"Oct",0.16,10,0.16,0.72]
[null,null,null,null,null,null,null,null,null,null,"Nov",0.11,2.91,0.11,0.33]
[null,null,null,null,null,null,null,null,null,null,"Dec",58,5.4,0.57999999999999996,1.23]
[null,null,null,null,null,null,null,null,null,null,"Annual",{"$f":"AVERAGE(L52:L63)","v":5.2333333333333334},{"$f":"MAX(M52:M63)","v":15.6},{"$f":"AVERAGE(N52:N63)","v":0.44833333333333342},{"$f":"MAX(O52:O63)","v":5.0199999999999996}]
[]
[null,null,null,null,null,null,null,null,null,{"$f":"+A6","v":2021},"mg/Nm3","Monthly 1/2 hourly mean","Monthly 1/2 hourly maximum","Monthly daily mean","Monthly daily maximum"]
[null,null,null,null,null,null,null,null,null,"A5","Jan",1.1000000000000001,5.36,1.1000000000000001,1.43]
[null,null,null,null,null,null,null,null,null,null,"Feb",96,8.1999999999999993,0.96,2.36]
[null,null,null,null,null,null,null,null,null,null,"Mar",1.3,16.34,1.3,1.96]
[null,null,null,null,null,null,null,null,null,null,"Apr",1.36,34,1.36,2.5]
[null,null,null,null,null,null,null,null,null,null,"May",2.0499999999999998,37,2.0499999999999998,2.96]
[null,null,null,null,null,null,null,null,null,null,"Jun",2.74,10.55,2.74,3.7]
[null,null,null,null,null,null,null,null,null,null,"Jul",1.6,5.18,1.6,2.76]
[null,null,null,null,null,null,null,null,null,null,"Aug",3.01,25,3,4.0999999999999996]
[null,null,null,null,null,null,null,null,null,null,"Sep",1.9,50,1.9,3.25]
[null,null,null,null,null,null,null,null,null,null,"Oct",1.8,8.5500000000000007,1.8,2.74]
[null,null,null,null,null,null,null,null,null,null,"Nov",1.7,25,1.7,3.1]
[null,null,null,null,null,null,null,null,null,null,"Dec",1.4,8.4,1.4,2.5]
[null,null,null,null,null,null,null,null,null,null,"Annual",{"$f":"AVERAGE(L67:L78)","v":9.6633333333333322},{"$f":"MAX(M67:M78)","v":50},{"$f":"AVERAGE(N67:N78)","v":1.7424999999999999},{"$f":"MAX(O67:O78)","v":4.0999999999999996}]